Portfolio,Expense Area,Cost Centre,Expense Type,Account Code,Amount,Supplier Name,SupplierId,Pay Date,Transaction No.,,VAT No.,Co. Reg. No.,VAT No.,Voucher Type,�,Trans Date
Environment and Public Realm,Trade Waste Collection,WWC01,Materials,303,14.81,Arco Limited,100015,01/03/2018,10255775,TC,166911546,,166911546,PN,1862.36,18/01/2018
Environment and Public Realm,Trade Waste Collection,WWC01,Personal Protective Equipment,306,63.94,Arco Limited,100015,01/03/2018,10255775,TC,166911546,,166911546,PN,1862.36,18/01/2018
Environment and Public Realm,WSU Depot,WDP00,Messing Facilities,332,20.2,Arco Limited,100015,01/03/2018,10255775,TC,166911546,,166911546,PN,1862.36,18/01/2018
Environment and Public Realm,Garage,WVR00,Messing Facilities,332,110.66,Arco Limited,100015,01/03/2018,10255775,TC,166911546,,166911546,PN,1862.36,18/01/2018
Environment and Public Realm,WSU Depot,WDP00,Personal Protective Clothing,340,296.19,Arco Limited,100015,01/03/2018,10255775,TC,166911546,,166911546,PN,1862.36,18/01/2018
Housing Revenue Account,Electrical maintenance,UMR10,R&M External Contractors,100,1545.8,AWM Electrical Contractors Ltd,100051,08/03/2018,10257371,CS,661675907,7430696,661675907,PN,2577.74,02/03/2018
Housing Revenue Account,Miscellaneous Unplanned Maintenance and Repair,UMR17,R&M External Contractors,100,602.32,AWM Electrical Contractors Ltd,100051,08/03/2018,10257371,CS,661675907,7430696,661675907,PN,2577.74,02/03/2018
Housing Revenue Account,Repairs and Maintenance - Void works,UMR09,R&M External Contractors,100,796.52,AWM Electrical Contractors Ltd,100051,08/03/2018,10257372,CS,661675907,7430696,661675907,PN,955.82,02/03/2018
Housing Revenue Account,Repairs and Maintenance - Void works,UMR09,R&M External Contractors,100,2222.04,AWM Electrical Contractors Ltd,100051,08/03/2018,10257373,CS,661675907,7430696,661675907,PN,3032.6,02/03/2018
Capital Housing Revenue Account,Purchase of Council Houses,PUR00,Capital Contract Payments,5000,305.13,AWM Electrical Contractors Ltd,100051,08/03/2018,10257373,CS,661675907,7430696,661675907,PN,3032.6,02/03/2018
Housing Revenue Account,Repairs and Maintenance - Void works,UMR09,R&M External Contractors,100,108.54,AWM Electrical Contractors Ltd,100051,08/03/2018,10257374,CS,661675907,7430696,661675907,PN,5632.2,02/03/2018
Housing Revenue Account,Electrical maintenance,UMR10,R&M External Contractors,100,4487.93,AWM Electrical Contractors Ltd,100051,08/03/2018,10257374,CS,661675907,7430696,661675907,PN,5632.2,02/03/2018
Housing Revenue Account,Miscellaneous Unplanned Maintenance and Repair,UMR17,R&M External Contractors,100,97.03,AWM Electrical Contractors Ltd,100051,08/03/2018,10257374,CS,661675907,7430696,661675907,PN,5632.2,02/03/2018
Housing Revenue Account,Repairs and Maintenance - Void works,UMR09,R&M External Contractors,100,1182.88,AWM Electrical Contractors Ltd,100051,08/03/2018,10257375,CS,661675907,7430696,661675907,PN,1419.46,02/03/2018
Housing Revenue Account,Electrical maintenance,UMR10,R&M External Contractors,100,1464.67,AWM Electrical Contractors Ltd,100051,15/03/2018,10257537,CS,661675907,7430696,661675907,PN,1911.16,08/03/2018
Housing Revenue Account,Miscellaneous Unplanned Maintenance and Repair,UMR17,R&M External Contractors,100,127.96,AWM Electrical Contractors Ltd,100051,15/03/2018,10257537,CS,661675907,7430696,661675907,PN,1911.16,08/03/2018
Capital Housing Revenue Account,Fire Risk Prevention Works,HCE18,Capital Contract Payments,5000,5312,AWM Electrical Contractors Ltd,100051,22/03/2018,10257830,CS,661675907,7430696,661675907,PN,6374.4,16/03/2018
Housing Revenue Account,Electrical maintenance,UMR10,R&M External Contractors,100,410.79,AWM Electrical Contractors Ltd,100051,22/03/2018,10257831,CS,661675907,7430696,661675907,PN,995.72,16/03/2018
Housing Revenue Account,Miscellaneous Unplanned Maintenance and Repair,UMR17,R&M External Contractors,100,418.98,AWM Electrical Contractors Ltd,100051,22/03/2018,10257831,CS,661675907,7430696,661675907,PN,995.72,16/03/2018
Housing Revenue Account,Electrical maintenance,UMR10,R&M External Contractors,100,1944.76,AWM Electrical Contractors Ltd,100051,22/03/2018,10257833,CS,661675907,7430696,661675907,PN,2950.97,16/03/2018
Housing Revenue Account,Miscellaneous Unplanned Maintenance and Repair,UMR17,R&M External Contractors,100,514.38,AWM Electrical Contractors Ltd,100051,22/03/2018,10257833,CS,661675907,7430696,661675907,PN,2950.97,16/03/2018
Housing Revenue Account,Electrical maintenance,UMR10,R&M External Contractors,100,710.29,AWM Electrical Contractors Ltd,100051,22/03/2018,10257834,CS,661675907,7430696,661675907,PN,1852.07,16/03/2018
Housing Revenue Account,Miscellaneous Unplanned Maintenance and Repair,UMR17,R&M External Contractors,100,305.48,AWM Electrical Contractors Ltd,100051,22/03/2018,10257834,CS,661675907,7430696,661675907,PN,1852.07,16/03/2018
Housing Revenue Account,Multi-Storey Flats,MSF00,Other Miscellaneous Expenses,444,527.62,AWM Electrical Contractors Ltd,100051,22/03/2018,10257834,CS,661675907,7430696,661675907,PN,1852.07,16/03/2018
Housing Revenue Account,Electrical maintenance,UMR10,R&M External Contractors,100,547.23,AWM Electrical Contractors Ltd,100051,22/03/2018,10257911,CS,661675907,7430696,661675907,PN,851.08,19/03/2018
Housing Revenue Account,Miscellaneous Unplanned Maintenance and Repair,UMR17,R&M External Contractors,100,162,AWM Electrical Contractors Ltd,100051,22/03/2018,10257911,CS,661675907,7430696,661675907,PN,851.08,19/03/2018
Housing Revenue Account,Repairs and Maintenance - Void works,UMR09,R&M External Contractors,100,1506.81,AWM Electrical Contractors Ltd,100051,22/03/2018,10257936,CS,661675907,7430696,661675907,PN,1808.18,18/03/2018
Housing Revenue Account,Repairs and Maintenance - Void works,UMR09,R&M External Contractors,100,1613,AWM Electrical Contractors Ltd,100051,22/03/2018,10257937,CS,661675907,7430696,661675907,PN,1935.6,20/03/2018
Housing Revenue Account,Gas Heating Systems,UMR01,R&M External Contractors,100,182.16,AWM Electrical Contractors Ltd,100051,28/03/2018,10258023,CS,661675907,7430696,661675907,PN,1695.56,22/03/2018
Housing Revenue Account,Electrical maintenance,UMR10,R&M External Contractors,100,1203.92,AWM Electrical Contractors Ltd,100051,28/03/2018,10258023,CS,661675907,7430696,661675907,PN,1695.56,22/03/2018
Housing Revenue Account,Miscellaneous Unplanned Maintenance and Repair,UMR17,R&M External Contractors,100,26.89,AWM Electrical Contractors Ltd,100051,28/03/2018,10258023,CS,661675907,7430696,661675907,PN,1695.56,22/03/2018
Housing Revenue Account,Gas Heating Systems,UMR01,R&M External Contractors,100,68.33,AWM Electrical Contractors Ltd,100051,28/03/2018,10258113,CS,661675907,7430696,661675907,PN,7407.13,23/03/2018
Housing Revenue Account,Electrical maintenance,UMR10,R&M External Contractors,100,203,AWM Electrical Contractors Ltd,100051,28/03/2018,10258113,CS,661675907,7430696,661675907,PN,7407.13,23/03/2018
Housing Revenue Account,Miscellaneous Unplanned Maintenance and Repair,UMR17,R&M External Contractors,100,17.02,AWM Electrical Contractors Ltd,100051,28/03/2018,10258113,CS,661675907,7430696,661675907,PN,7407.13,23/03/2018
Capital Housing Revenue Account,Fire Risk Prevention Works,HCE18,Capital Contract Payments,5000,5884.26,AWM Electrical Contractors Ltd,100051,28/03/2018,10258113,CS,661675907,7430696,661675907,PN,7407.13,23/03/2018
Housing Revenue Account,Gas Heating Systems,UMR01,R&M External Contractors,100,27.98,AWM Electrical Contractors Ltd,100051,28/03/2018,10258172,CS,661675907,7430696,661675907,PN,3975.04,27/03/2018
Housing Revenue Account,Electrical maintenance,UMR10,R&M External Contractors,100,2943.24,AWM Electrical Contractors Ltd,100051,28/03/2018,10258172,CS,661675907,7430696,661675907,PN,3975.04,27/03/2018
Housing Revenue Account,Miscellaneous Unplanned Maintenance and Repair,UMR17,R&M External Contractors,100,341.31,AWM Electrical Contractors Ltd,100051,28/03/2018,10258172,CS,661675907,7430696,661675907,PN,3975.04,27/03/2018
Housing Revenue Account,Repairs and Maintenance - Void works,UMR09,R&M External Contractors,100,2925.11,AWM Electrical Contractors Ltd,100051,28/03/2018,10258234,CS,661675907,7430696,661675907,PN,4034.9,27/03/2018
Housing Revenue Account,Electrical maintenance,UMR10,R&M External Contractors,100,437.31,AWM Electrical Contractors Ltd,100051,28/03/2018,10258234,CS,661675907,7430696,661675907,PN,4034.9,27/03/2018
Housing Revenue Account,Repairs and Maintenance - Void works,UMR09,R&M External Contractors,100,1178.89,AWM Electrical Contractors Ltd,100051,28/03/2018,10258235,CS,661675907,7430696,661675907,PN,1414.67,27/03/2018
Corporate Resources,Corporate Property R&M,CPA01,R&M External Contractors,100,1332.88,Adt Fire & Security plc,100070,22/03/2018,10257904,TC,413633086,,413 6330 86,PI,1599.46,19/03/2018
Capital Housing Revenue Account,Kitchen Modifications,HIK10,Capital Contract Payments,5000,7550.58,A C E Carpentry & Joinery Contractors Ltd,100085,08/03/2018,10257367,CS,729422428,4120783,729422428,PN,9060.7,02/03/2018
Capital Housing Revenue Account,Kitchen Modifications,HIK10,Capital Contract Payments,5000,3008,A C E Carpentry & Joinery Contractors Ltd,100085,08/03/2018,10257368,CS,729422428,4120783,729422428,PN,3609.6,02/03/2018
Capital Housing Revenue Account,Kitchen Modifications,HIK10,Capital Contract Payments,5000,9054.58,A C E Carpentry & Joinery Contractors Ltd,100085,15/03/2018,10257554,CS,729422428,4120783,729422428,PN,10865.5,08/03/2018
Capital Housing Revenue Account,Kitchen Modifications,HIK10,Capital Contract Payments,5000,10067.44,A C E Carpentry & Joinery Contractors Ltd,100085,22/03/2018,10257856,CS,729422428,4120783,729422428,PN,12080.93,19/03/2018
Capital Housing Revenue Account,Kitchen Modifications,HIK10,Capital Contract Payments,5000,16605.16,A C E Carpentry & Joinery Contractors Ltd,100085,28/03/2018,10258231,CS,729422428,4120783,729422428,PN,19926.19,27/03/2018
Corporate Resources,Council Tax and NNDR Collection,CTX01,External Legal Costs,741,67.33,Bristow & Sutor,100159,15/03/2018,10257461,TC,294694111,,294694111,PN,532.43,06/03/2018
Corporate Resources,Council Tax and NNDR Collection,CTX01,External Legal Costs,741,103.01,Bristow & Sutor,100159,15/03/2018,10257600,TC,294694111,,294694111,PN,573.75,09/03/2018
Corporate Resources,Council Tax and NNDR Collection,CTX01,External Legal Costs,741,21.36,Bristow & Sutor,100159,22/03/2018,10257913,TC,294694111,,294694111,PN,642.53,19/03/2018
Housing Revenue Account,Sheltered Housing,AGP00,Telephone Expenses,371,4008.43,British Telecommunications Plc,100161,01/03/2018,10256948,TC,245719348,,245719348,PN,4810.12,20/02/2018
Environment and Public Realm,Crematorium,CRM00,Telephone Expenses,371,1187.88,British Telecommunications Plc,100161,01/03/2018,10257084,TC,245719348,,245719348,PN,1425.46,22/02/2018
Communities and Homes,CL Grants,CGS00,Grants To Voluntary Organisations,720,2000,Benn Partnership Centre,100235,15/03/2018,10257631,TC,,,,PN,2000,12/03/2018
Environment and Public Realm,Trade Waste Collection,WWC01,Vehicle Repair and Maintenance,200,236.4,Charles Watts Engineering Ltd,100302,15/03/2018,10257414,CS,272707159,466266,272 7071 59,PN,1418.4,06/03/2018
Housing Revenue Account,Repairs and Maintenance - Void works,UMR09,Materials,303,560,Charles Watts Engineering Ltd,100302,08/03/2018,10257490,CS,272707159,466266,272 7071 59,PN,672,07/03/2018
Corporate Resources,Corporate Property R&M,CPA01,R&M External Contractors,100,3190,Chillaire Service & Maintenance Ltd,100305,22/03/2018,10257163,TC,806802244,4622016,806802244,PN,3828,27/02/2018
Corporate Resources,Corporate Property R&M,CPA01,R&M External Contractors,100,2498.78,Chillaire Service & Maintenance Ltd,100305,28/03/2018,10258239,TC,806802244,4622016,806802244,PN,2998.54,27/03/2018
Growth and Investment,Economic Development General,ECD00,Development Activities,450,840,Coventry & Warwickshire Chamber Of Commerce,100412,28/03/2018,10257565,TC,729947967,,729947967,PN,1008,08/03/2018
Environment and Public Realm,Regulatory Services,REG00,Other Miscellaneous Expenses,444,2350,Heart Of England Co-operative Society Ltd,100479,15/03/2018,10257573,TC,328078938,,328078938,PN,2350,08/03/2018
Communities and Homes,ITC & Support Services,CIS10,Photocopying,354,-1413.5,Canon (UK) Limited,100514,01/03/2018,10256643,TC,523797128,1264300,523797128,PN,-1696.2,13/02/2018
Communities and Homes,ITC & Support Services,CIS10,Photocopying,354,5088.21,Canon (UK) Limited,100514,01/03/2018,10257034,TC,523797128,1264300,523797128,PN,6105.85,22/02/2018
Communities and Homes,ITC & Support Services,CIS10,Photocopying,354,3485.91,Canon (UK) Limited,100514,01/03/2018,10257035,TC,523797128,1264300,523797128,PN,4183.09,22/02/2018
Corporate Resources,Corporate Property R&M,CPA01,R&M External Contractors,100,595,Dunchurch Services (Rugby) Ltd,100565,22/03/2018,10257810,CS,623535748,2693688,623535748,PN,714,15/03/2018
Environment and Public Realm,Street Furniture,LEI22,Capital Contract Payments,5000,558.95,Earth Anchors Ltd,100615,28/03/2018,10258067,TC,219786228,,219786228,PI,670.74,22/03/2018
Environment and Public Realm,Crematorium,CRM00,Gas,131,1653.9,ESPO,100641,01/03/2018,10256687,TC,705180561,,705180561,PN,1984.68,13/02/2018
Corporate Resources,Corporate Property Central Utilities,CPA02,Gas,131,1346.41,ESPO,100641,22/03/2018,10257766,TC,705180561,,705180561,PN,1615.69,14/03/2018
Corporate Resources,Corporate Property Central Utilities,CPA02,Gas,131,2264.66,ESPO,100641,22/03/2018,10257767,TC,705180561,,705180561,PN,2717.62,14/03/2018
Housing Revenue Account,Albert Square AP,AGP20,Gas,131,1151.46,ESPO,100641,22/03/2018,10257769,TC,705180561,,705180561,PN,1381.75,14/03/2018
Housing Revenue Account,Lesley Souter House AP,AGP16,Gas,131,1033.2,ESPO,100641,22/03/2018,10257770,TC,705180561,,705180561,PN,1239.84,14/03/2018
Housing Revenue Account,Tanser Court AP,AGP17,Gas,131,1181.13,ESPO,100641,22/03/2018,10257771,TC,705180561,,705180561,PN,1417.36,14/03/2018
Environment and Public Realm,WSU Depot,WDP00,Gas,131,775.85,ESPO,100641,15/03/2018,10257779,TC,705180561,,705180561,PN,931.02,14/03/2018
Environment and Public Realm,Crematorium,CRM00,Gas,131,578.47,ESPO,100641,15/03/2018,10257790,TC,705180561,,705180561,PN,694.16,14/03/2018
Capital Housing Revenue Account,Housing Window Replacement,HWR00,Capital Contract Payments,5000,32152.41,Nationwide Windows Ltd,100808,01/03/2018,10256868,CS,792405224,2025613,792405224,PN,38582.89,16/02/2018
Housing Revenue Account,Repairs and Maintenance - Void works,UMR09,R&M External Contractors,100,271.7,Nationwide Windows Ltd,100808,08/03/2018,10257369,CS,792405224,2025613,792405224,PN,6551.57,02/03/2018
Housing Revenue Account,Miscellaneous Unplanned Maintenance and Repair,UMR17,R&M External Contractors,100,119.94,Nationwide Windows Ltd,100808,08/03/2018,10257369,CS,792405224,2025613,792405224,PN,6551.57,02/03/2018
Capital Housing Revenue Account,Housing Window Replacement,HWR00,Capital Contract Payments,5000,5068,Nationwide Windows Ltd,100808,08/03/2018,10257369,CS,792405224,2025613,792405224,PN,6551.57,02/03/2018
Housing Revenue Account,Unplanned Maintenance and Repair,UMR00,R&M External Contractors,100,123.94,Nationwide Windows Ltd,100808,08/03/2018,10257431,CS,792405224,2025613,792405224,PN,7132.64,06/03/2018
Housing Revenue Account,Repairs and Maintenance - Void works,UMR09,R&M External Contractors,100,862.24,Nationwide Windows Ltd,100808,08/03/2018,10257431,CS,792405224,2025613,792405224,PN,7132.64,06/03/2018
Capital Housing Revenue Account,Housing Window Replacement,HWR00,Capital Contract Payments,5000,4957.69,Nationwide Windows Ltd,100808,08/03/2018,10257431,CS,792405224,2025613,792405224,PN,7132.64,06/03/2018
Housing Revenue Account,Repairs and Maintenance - Void works,UMR09,R&M External Contractors,100,183.24,Nationwide Windows Ltd,100808,22/03/2018,10257924,CS,792405224,2025613,792405224,PN,2516.09,19/03/2018
Housing Revenue Account,Miscellaneous Unplanned Maintenance and Repair,UMR17,R&M External Contractors,100,289.9,Nationwide Windows Ltd,100808,22/03/2018,10257924,CS,792405224,2025613,792405224,PN,2516.09,19/03/2018
Housing Revenue Account,Repairs and Maintenance - rechargeable works,UMR20,R&M External Contractors,100,86.28,Nationwide Windows Ltd,100808,22/03/2018,10257924,CS,792405224,2025613,792405224,PN,2516.09,19/03/2018
Capital Housing Revenue Account,Housing Window Replacement,HWR00,Capital Contract Payments,5000,1537.32,Nationwide Windows Ltd,100808,22/03/2018,10257924,CS,792405224,2025613,792405224,PN,2516.09,19/03/2018
Housing Revenue Account,Miscellaneous Unplanned Maintenance and Repair,UMR17,R&M External Contractors,100,91.92,Nationwide Windows Ltd,100808,28/03/2018,10258052,CS,792405224,2025613,792405224,PN,32127.32,22/03/2018
Capital Housing Revenue Account,Housing Window Replacement,HWR00,Capital Contract Payments,5000,22773.73,Nationwide Windows Ltd,100808,28/03/2018,10258052,CS,792405224,2025613,792405224,PN,32127.32,22/03/2018
Capital Housing Revenue Account,Purchase of Council Houses,PUR00,Capital Contract Payments,5000,3907.12,Nationwide Windows Ltd,100808,28/03/2018,10258052,CS,792405224,2025613,792405224,PN,32127.32,22/03/2018
Housing Revenue Account,Repairs and Maintenance - Void works,UMR09,R&M External Contractors,100,797.67,Nationwide Windows Ltd,100808,28/03/2018,10258252,CS,792405224,2025613,792405224,PN,12643.08,27/03/2018
Capital Housing Revenue Account,Housing Window Replacement,HWR00,Capital Contract Payments,5000,9738.23,Nationwide Windows Ltd,100808,28/03/2018,10258252,CS,792405224,2025613,792405224,PN,12643.08,27/03/2018
Environment and Public Realm,Garage,WVR00,Materials,303,1833.48,Fuchs Lubricants (UK) Plc,100832,01/03/2018,10257156,TC,284166443,2412689,284166443,PN,2200.18,27/02/2018
Corporate Resources,Corporate Property Management,CPM00,Asset Management Expenses,448,1033.9,Godfrey-Payton Chartered Surveyors,100937,08/03/2018,10256943,TC,272440179,,272440179,PN,1240.68,20/02/2018
Corporate Resources,Human Resources Centralised Services,RES31,Recruitment Expenses,12,1179.56,TMP (UK) LTD,100972,08/03/2018,10256876,TC,872904502,,872904502,PI,1415.47,19/02/2018
Corporate Resources,Human Resources Centralised Services,RES31,Recruitment Expenses,12,2480,TMP (UK) LTD,100972,08/03/2018,10257145,TC,872904502,,872904502,PI,2976,27/02/2018
Corporate Resources,Human Resources Centralised Services,RES31,Recruitment Expenses,12,2480,TMP (UK) LTD,100972,08/03/2018,10257146,TC,872904502,,872904502,PI,2976,27/02/2018
Corporate Resources,Human Resources Centralised Services,RES31,Recruitment Expenses,12,785,TMP (UK) LTD,100972,08/03/2018,10257397,TC,872904502,,872904502,PI,942,05/03/2018
Corporate Resources,Town Hall,OFF00,New Equipment,300,23.5,IE Office Equipment Ltd,101114,22/03/2018,10257927,CS,661544339,,661544339,PI,1001.64,19/03/2018
Corporate Resources,Town Hall,OFF00,Furniture,302,811.2,IE Office Equipment Ltd,101114,22/03/2018,10257927,CS,661544339,,661544339,PI,1001.64,19/03/2018
Housing Revenue Account,Unplanned Maintenance and Repair,UMR00,External Contractor & Operator,742,-427,Clews Recycling Limited,101213,15/03/2018,10256967,TC,747316619,,747316619,PN,-512.4,20/02/2018
Housing Revenue Account,Unplanned Maintenance and Repair,UMR00,External Contractor & Operator,742,1107.75,Clews Recycling Limited,101213,15/03/2018,10257200,TC,747316619,,747316619,PN,1329.3,27/02/2018
Housing Revenue Account,Unplanned Maintenance and Repair,UMR00,External Contractor & Operator,742,-770,Clews Recycling Limited,101213,15/03/2018,10257646,TC,747316619,,747316619,PN,-924,12/03/2018
Housing Revenue Account,Unplanned Maintenance and Repair,UMR00,External Contractor & Operator,742,516.83,Clews Recycling Limited,101213,15/03/2018,10257710,TC,747316619,,747316619,PN,620.2,13/03/2018
Housing Revenue Account,Unplanned Maintenance and Repair,UMR00,External Contractor & Operator,742,604.12,Clews Recycling Limited,101213,28/03/2018,10258079,TC,747316619,,747316619,PN,724.94,23/03/2018
Environment and Public Realm,Parks,PKS00,New Equipment,300,508.2,Nuneaton Signs Ltd,101371,08/03/2018,10256368,TC,355381251,7207123,355 381251,PI,609.84,02/02/2018
Communities and Homes,CL Grants,CGS00,Grants To Voluntary Organisations,720,4500,New Bilton Community Association,101389,15/03/2018,10257632,TC,,,,PN,4500,12/03/2018
Housing Revenue Account,Sheltered Housing,AGP00,Telephone Expenses,371,248.37,EE Ltd t/a Orange Personal Communications,101404,15/03/2018,10257698,TC,529221751,,529221751,PN,5247.93,13/03/2018
Environment and Public Realm,Crematorium,CRM00,Telephone Expenses,371,11.75,EE Ltd t/a Orange Personal Communications,101404,15/03/2018,10257698,TC,529221751,,529221751,PN,5247.93,13/03/2018
Housing Revenue Account,Supervision and Management General,MAN00,Telephone Expenses,371,177.06,EE Ltd t/a Orange Personal Communications,101404,15/03/2018,10257698,TC,529221751,,529221751,PN,5247.93,13/03/2018
Housing Revenue Account,Property Maintenance,MAN23,Telephone Expenses,371,127.75,EE Ltd t/a Orange Personal Communications,101404,15/03/2018,10257698,TC,529221751,,529221751,PN,5247.93,13/03/2018
Housing Revenue Account,Multi-Storey Flats,MSF00,Telephone Expenses,371,11.75,EE Ltd t/a Orange Personal Communications,101404,15/03/2018,10257698,TC,529221751,,529221751,PN,5247.93,13/03/2018
Communities and Homes,Mobile telephones,TEL03,Telephone Expenses,371,2892.84,EE Ltd t/a Orange Personal Communications,101404,15/03/2018,10257698,TC,529221751,,529221751,PN,5247.93,13/03/2018
Housing Revenue Account,Unplanned Maintenance and Repair,UMR00,Telephone Expenses,371,897.67,EE Ltd t/a Orange Personal Communications,101404,15/03/2018,10257698,TC,529221751,,529221751,PN,5247.93,13/03/2018
Housing Revenue Account,Repairs and Maintenance - Void works,UMR09,Telephone Expenses,371,11.75,EE Ltd t/a Orange Personal Communications,101404,15/03/2018,10257698,TC,529221751,,529221751,PN,5247.93,13/03/2018
Communities and Homes,Central Business Support Services,CSS15,External Printing,352,960,Polycopy,101428,22/03/2018,10257866,TC,115912486,,115912486,PI,1152,19/03/2018
Environment and Public Realm,Crematorium,CRM00,R&M External Contractors,100,493.33,PJT Pumping Services,101438,01/03/2018,10257018,TC,618143943,,618143943,PN,591.99,21/02/2018
Environment and Public Realm,Sewage Disposal Plant,SDP00,R&M External Contractors,100,520.28,PJT Pumping Services,101438,22/03/2018,10257825,TC,618143943,,618143943,PN,624.34,15/03/2018
Environment and Public Realm,Section 106 Grounds Maintenance,PKS16,External Contractor & Operator,742,325,Post To Post Fencing,101490,28/03/2018,10257473,CS,7729350133,,7729350133,PI,1104,07/03/2018
Growth and Investment,Gypsy and Traveller Enforcement,PLN10,External Contractor & Operator,742,595,Post To Post Fencing,101490,28/03/2018,10257473,CS,7729350133,,7729350133,PI,1104,07/03/2018
Capital Housing Revenue Account,Disabled Adaptations,HCR01,R&M External Contractors,100,2230,Reeds Plumbing & Heating Contractors Ltd,101504,15/03/2018,10257639,CS,418584732,4468782,418 5847 32,PN,27384.65,12/03/2018
Capital Housing Revenue Account,Kitchen Modifications,HIK10,R&M External Contractors,100,4553,Reeds Plumbing & Heating Contractors Ltd,101504,15/03/2018,10257639,CS,418584732,4468782,418 5847 32,PN,27384.65,12/03/2018
Capital Housing Revenue Account,Heating Upgrades,HIM01,R&M External Contractors,100,2107.54,Reeds Plumbing & Heating Contractors Ltd,101504,15/03/2018,10257639,CS,418584732,4468782,418 5847 32,PN,27384.65,12/03/2018
Capital Housing Revenue Account,Bathroom Modifications,HIS01,R&M External Contractors,100,13635,Reeds Plumbing & Heating Contractors Ltd,101504,15/03/2018,10257639,CS,418584732,4468782,418 5847 32,PN,27384.65,12/03/2018
Housing Revenue Account,Miscellaneous Unplanned Maintenance and Repair,UMR17,R&M External Contractors,100,295,Reeds Plumbing & Heating Contractors Ltd,101504,15/03/2018,10257639,CS,418584732,4468782,418 5847 32,PN,27384.65,12/03/2018
Capital Housing Revenue Account,Kitchen Modifications,HIK10,Capital Contract Payments,5000,22970,Reeds Plumbing & Heating Contractors Ltd,101504,22/03/2018,10257857,CS,418584732,4468782,418 5847 32,PN,27564,19/03/2018
Housing Revenue Account,Repairs and Maintenance - Void works,UMR09,R&M External Contractors,100,1075,Reeds Plumbing & Heating Contractors Ltd,101504,22/03/2018,10257944,CS,418584732,4468782,418 5847 32,PN,8298,20/03/2018
Capital Housing Revenue Account,Disabled Adaptations,HCR01,Capital Contract Payments,5000,1050,Reeds Plumbing & Heating Contractors Ltd,101504,22/03/2018,10257944,CS,418584732,4468782,418 5847 32,PN,8298,20/03/2018
Capital Housing Revenue Account,Bathroom Modifications,HIS01,Capital Contract Payments,5000,4790,Reeds Plumbing & Heating Contractors Ltd,101504,22/03/2018,10257944,CS,418584732,4468782,418 5847 32,PN,8298,20/03/2018
Capital Housing Revenue Account,Kitchen Modifications,HIK10,Capital Contract Payments,5000,6891,Reeds Plumbing & Heating Contractors Ltd,101504,28/03/2018,10258124,CS,418584732,4468782,418 5847 32,PN,8269.2,26/03/2018
Capital Housing Revenue Account,Kitchen Modifications,HIK10,Capital Contract Payments,5000,4594,Reeds Plumbing & Heating Contractors Ltd,101504,28/03/2018,10258184,CS,418584732,4468782,418 5847 32,PN,5512.8,27/03/2018
Environment and Public Realm,Trade Waste Collection,WWC01,Vehicle Repair and Maintenance,200,565,Rugby Mobile Windscreens,101520,01/03/2018,10257025,TC,307407185,,307407185,PN,678,21/02/2018
Growth and Investment,Building Control Services,BCS00,Postage & Distribution,370,0.31,Royal Mail,101554,01/03/2018,10257113,TC,,,,PN,1955.91,27/02/2018
Communities and Homes,Central Business Support Services,CSS15,Postage & Distribution,370,518.03,Royal Mail,101554,01/03/2018,10257113,TC,,,,PN,1955.91,27/02/2018
Corporate Resources,Council Tax and NNDR Collection,CTX01,Postage & Distribution,370,488.13,Royal Mail,101554,01/03/2018,10257113,TC,,,,PN,1955.91,27/02/2018
Executive Director Office,Electoral Registration,ERG00,Postage & Distribution,370,13.47,Royal Mail,101554,01/03/2018,10257113,TC,,,,PN,1955.91,27/02/2018
Housing Revenue Account,Supervision and Management General,MAN00,Postage & Distribution,370,94.15,Royal Mail,101554,01/03/2018,10257113,TC,,,,PN,1955.91,27/02/2018
Growth and Investment,Planning General/Income,PLN00,Postage & Distribution,370,383.57,Royal Mail,101554,01/03/2018,10257113,TC,,,,PN,1955.91,27/02/2018
Housing Revenue Account,Unplanned Maintenance and Repair,UMR00,Postage & Distribution,370,0.8,Royal Mail,101554,01/03/2018,10257113,TC,,,,PN,1955.91,27/02/2018
Growth and Investment,Visitor Centre,VSC00,Postage & Distribution,370,0.58,Royal Mail,101554,01/03/2018,10257113,TC,,,,PN,1955.91,27/02/2018
Growth and Investment,Art Gallery and Museum,AGM00,Postage & Distribution,370,5.31,Royal Mail,101554,15/03/2018,10257362,TC,,,,PN,3172.36,02/03/2018
Growth and Investment,Building Control Services,BCS00,Postage & Distribution,370,0.3,Royal Mail,101554,15/03/2018,10257362,TC,,,,PN,3172.36,02/03/2018
Communities and Homes,Central Business Support Services,CSS15,Postage & Distribution,370,393.22,Royal Mail,101554,15/03/2018,10257362,TC,,,,PN,3172.36,02/03/2018
Corporate Resources,Council Tax and NNDR Collection,CTX01,Postage & Distribution,370,597.58,Royal Mail,101554,15/03/2018,10257362,TC,,,,PN,3172.36,02/03/2018
Executive Director Office,Electoral Registration,ERG00,Postage & Distribution,370,17.6,Royal Mail,101554,15/03/2018,10257362,TC,,,,PN,3172.36,02/03/2018
Housing Revenue Account,Supervision and Management General,MAN00,Postage & Distribution,370,1269.66,Royal Mail,101554,15/03/2018,10257362,TC,,,,PN,3172.36,02/03/2018
Growth and Investment,Planning General/Income,PLN00,Postage & Distribution,370,185.7,Royal Mail,101554,15/03/2018,10257362,TC,,,,PN,3172.36,02/03/2018
Environment and Public Realm,Household Green Waste Collections,REF06,Postage & Distribution,370,1.74,Royal Mail,101554,15/03/2018,10257362,TC,,,,PN,3172.36,02/03/2018
Housing Revenue Account,Unplanned Maintenance and Repair,UMR00,Postage & Distribution,370,0.4,Royal Mail,101554,15/03/2018,10257362,TC,,,,PN,3172.36,02/03/2018
Growth and Investment,Art Gallery and Museum,AGM00,Postage & Distribution,370,78.94,Royal Mail,101554,28/03/2018,10257655,TC,,,,PN,13516.5,12/03/2018
Growth and Investment,Building Control Services,BCS00,Postage & Distribution,370,0.58,Royal Mail,101554,28/03/2018,10257655,TC,,,,PN,13516.5,12/03/2018
Communities and Homes,Central Business Support Services,CSS15,Postage & Distribution,370,235.22,Royal Mail,101554,28/03/2018,10257655,TC,,,,PN,13516.5,12/03/2018
Corporate Resources,Council Tax and NNDR Collection,CTX01,Postage & Distribution,370,9033.42,Royal Mail,101554,28/03/2018,10257655,TC,,,,PN,13516.5,12/03/2018
Executive Director Office,Electoral Registration,ERG00,Postage & Distribution,370,10.14,Royal Mail,101554,28/03/2018,10257655,TC,,,,PN,13516.5,12/03/2018
Housing Revenue Account,Supervision and Management General,MAN00,Postage & Distribution,370,114.59,Royal Mail,101554,28/03/2018,10257655,TC,,,,PN,13516.5,12/03/2018
Growth and Investment,Planning General/Income,PLN00,Postage & Distribution,370,123.94,Royal Mail,101554,28/03/2018,10257655,TC,,,,PN,13516.5,12/03/2018
Environment and Public Realm,Household Green Waste Collections,REF06,Postage & Distribution,370,1.45,Royal Mail,101554,28/03/2018,10257655,TC,,,,PN,13516.5,12/03/2018
Housing Revenue Account,Unplanned Maintenance and Repair,UMR00,Postage & Distribution,370,5.2,Royal Mail,101554,28/03/2018,10257655,TC,,,,PN,13516.5,12/03/2018
Growth and Investment,Art Gallery and Museum,AGM00,Postage & Distribution,370,1.1,Royal Mail,101554,28/03/2018,10257892,TC,,,,PN,6542.19,19/03/2018
Growth and Investment,Building Control Services,BCS00,Postage & Distribution,370,0.61,Royal Mail,101554,28/03/2018,10257892,TC,,,,PN,6542.19,19/03/2018
Communities and Homes,Central Business Support Services,CSS15,Postage & Distribution,370,354.94,Royal Mail,101554,28/03/2018,10257892,TC,,,,PN,6542.19,19/03/2018
Corporate Resources,Council Tax and NNDR Collection,CTX01,Postage & Distribution,370,1925.37,Royal Mail,101554,28/03/2018,10257892,TC,,,,PN,6542.19,19/03/2018
Executive Director Office,Electoral Registration,ERG00,Postage & Distribution,370,9.52,Royal Mail,101554,28/03/2018,10257892,TC,,,,PN,6542.19,19/03/2018
Housing Revenue Account,Supervision and Management General,MAN00,Postage & Distribution,370,177.18,Royal Mail,101554,28/03/2018,10257892,TC,,,,PN,6542.19,19/03/2018
Growth and Investment,Planning General/Income,PLN00,Postage & Distribution,370,207.12,Royal Mail,101554,28/03/2018,10257892,TC,,,,PN,6542.19,19/03/2018
Environment and Public Realm,Household Green Waste Collections,REF06,Postage & Distribution,370,1915.5,Royal Mail,101554,28/03/2018,10257892,TC,,,,PN,6542.19,19/03/2018
Growth and Investment,Art Gallery and Museum,AGM00,Postage & Distribution,370,7.67,Royal Mail,101554,28/03/2018,10258098,TC,,,,PN,2554.12,23/03/2018
Growth and Investment,Building Control Services,BCS00,Postage & Distribution,370,1.56,Royal Mail,101554,28/03/2018,10258098,TC,,,,PN,2554.12,23/03/2018
Communities and Homes,Central Business Support Services,CSS15,Postage & Distribution,370,182.3,Royal Mail,101554,28/03/2018,10258098,TC,,,,PN,2554.12,23/03/2018
Corporate Resources,Council Tax and NNDR Collection,CTX01,Postage & Distribution,370,488.45,Royal Mail,101554,28/03/2018,10258098,TC,,,,PN,2554.12,23/03/2018
Executive Director Office,Electoral Registration,ERG00,Postage & Distribution,370,199.58,Royal Mail,101554,28/03/2018,10258098,TC,,,,PN,2554.12,23/03/2018
Housing Revenue Account,Supervision and Management General,MAN00,Postage & Distribution,370,59.5,Royal Mail,101554,28/03/2018,10258098,TC,,,,PN,2554.12,23/03/2018
Growth and Investment,Planning General/Income,PLN00,Postage & Distribution,370,100.22,Royal Mail,101554,28/03/2018,10258098,TC,,,,PN,2554.12,23/03/2018
Environment and Public Realm,Household Green Waste Collections,REF06,Postage & Distribution,370,947.61,Royal Mail,101554,28/03/2018,10258098,TC,,,,PN,2554.12,23/03/2018
Environment and Public Realm,Parks,PKS00,Maintenance of Equipment,301,2339.48,Hags-smp Ltd,101562,01/03/2018,10255921,CS,GB207853851,908021,GB207853851,PI,2807.37,23/01/2018
Corporate Resources,Corporate Property Central Utilities,CPA02,Water Services,143,2952.47,Water Plus,101610,22/03/2018,10256819,TC,,,,PN,2952.47,16/02/2018
Housing Revenue Account,Albert Square AP,AGP20,Water Services,143,1750.84,Water Plus,101610,01/03/2018,10257193,TC,,,,PN,1750.84,27/02/2018
Housing Revenue Account,Stretton Court AP,AGP13,Water Services,143,759.36,Water Plus,101610,01/03/2018,10257194,TC,,,,PN,759.36,27/02/2018
Housing Revenue Account,Tanser Court AP,AGP17,Water Services,143,1023.8,Water Plus,101610,01/03/2018,10257195,TC,,,,PN,1023.8,27/02/2018
Corporate Resources,Corporate Property Central Utilities,CPA02,Water Services,143,851.28,Water Plus,101610,22/03/2018,10257326,TC,,,,PN,851.28,01/03/2018
Environment and Public Realm,WSU Depot,WDP00,Water Services,143,793.71,Water Plus,101610,08/03/2018,10257328,TC,,,,PN,793.71,01/03/2018
Corporate Resources,Corporate Property Central Utilities,CPA02,Water Services,143,1227.51,Water Plus,101610,22/03/2018,10257452,TC,,,,PN,1227.51,06/03/2018
Executive Director Office,Electoral Services,ELC00,Stationery Supplies,350,1192,Shaw & Sons Ltd,101612,22/03/2018,10257906,TC,629353818,,629353818,PI,1430.4,19/03/2018
Housing Revenue Account,Miscellaneous Unplanned Maintenance and Repair,UMR17,R&M External Contractors,100,6393.42,Stannah Stairlifts Ltd,101623,15/03/2018,10257605,TC,236778328,,236778328,PN,7672.06,09/03/2018
Outside portfolio expenditure,Balance Sheet,BS,Vehicle Repair and Maintenance,200,462.95,Spaldings (UK) Limited,101634,15/03/2018,10256982,TC,389012442,,389 0124 42,PI,555.54,21/02/2018
Corporate Resources,Corporate Property R&M,CPA01,R&M External Contractors,100,2078.89,Secom Plc,101671,22/03/2018,10257885,TC,445838322,2585807,445838322,PN,2494.66,19/03/2018
Corporate Resources,Corporate Property R&M,CPA01,R&M External Contractors,100,929.44,Secom Plc,101671,22/03/2018,10257886,TC,445838322,2585807,445838322,PN,1115.32,19/03/2018
Environment and Public Realm,Trade Waste Collection,WWC01,Tyres,205,545.52,HI-Q Motorway,101736,22/03/2018,10257954,TC,100159429,,100159429,PN,2774.48,20/03/2018
Environment and Public Realm,Trade Waste Collection,WWC01,Tyres,205,250.52,HI-Q Motorway,101736,28/03/2018,10258155,TC,100159429,,100159429,PN,1627.02,26/03/2018
Environment and Public Realm,Street Furniture,HIG01,External Contractor & Operator,742,1070.85,Egbert H. Taylor & Co Ltd,101741,15/03/2018,10257760,TC,695267487,718441,695 2674 87,PI,1285.02,14/03/2018
Environment and Public Realm,Cemeteries General,CEM00,External Contractor & Operator,742,500,Warwickshire County Council,101893,01/03/2018,10257158,TC,272426659,,272426659,PN,9852,27/02/2018
Housing Revenue Account,Maintenance of Open Spaces,MOS00,External Contractor & Operator,742,1210,Warwickshire County Council,101893,01/03/2018,10257158,TC,272426659,,272426659,PN,9852,27/02/2018
Environment and Public Realm,Parks,PKS00,External Contractor & Operator,742,6500,Warwickshire County Council,101893,01/03/2018,10257158,TC,272426659,,272426659,PN,9852,27/02/2018
Communities and Homes,Customer Support Services,CSS00,Payments to Other Local Authorities,710,1860,Warwickshire County Council,101893,22/03/2018,10257826,TC,272426659,,272426659,PN,1860,15/03/2018
Communities and Homes,Warwickshire On Line Partnership,JCC10,Payments to Other Local Authorities,710,6801,Warwickshire County Council,101893,22/03/2018,10257858,TC,272426659,,272426659,PN,6801,19/03/2018
Environment and Public Realm,Cemeteries General,CEM00,External Contractor & Operator,742,800,Warwickshire County Council,101893,28/03/2018,10258080,TC,272426659,,272426659,PN,6240,23/03/2018
Housing Revenue Account,Maintenance of Open Spaces,MOS00,External Contractor & Operator,742,3600,Warwickshire County Council,101893,28/03/2018,10258080,TC,272426659,,272426659,PN,6240,23/03/2018
Environment and Public Realm,Parks,PKS00,External Contractor & Operator,742,800,Warwickshire County Council,101893,28/03/2018,10258080,TC,272426659,,272426659,PN,6240,23/03/2018
Environment and Public Realm,Cemeteries General,CEM00,External Contractor & Operator,742,2633.3,Warwickshire County Council,101893,28/03/2018,10258081,TC,272426659,,272426659,PN,24937.2,23/03/2018
Housing Revenue Account,Maintenance of Open Spaces,MOS00,External Contractor & Operator,742,9257.02,Warwickshire County Council,101893,28/03/2018,10258081,TC,272426659,,272426659,PN,24937.2,23/03/2018
Environment and Public Realm,Parks,PKS00,External Contractor & Operator,742,8890.68,Warwickshire County Council,101893,28/03/2018,10258081,TC,272426659,,272426659,PN,24937.2,23/03/2018
Environment and Public Realm,Car Parks General,CPK01,Signage,151,11722.39,Warwickshire County Council,101893,28/03/2018,10258121,TC,272426659,,272426659,PN,11722.39,26/03/2018
Growth and Investment,Planning General/Income,PLN00,Payments to Other Local Authorities,710,2768,Warwickshire County Council,101893,28/03/2018,10258216,TC,272426659,,272426659,PN,3321.6,27/03/2018
Growth and Investment,Planning General/Income,PLN00,Payments to Other Local Authorities,710,2768,Warwickshire County Council,101893,28/03/2018,10258217,TC,272426659,,272426659,PN,3321.6,27/03/2018
Growth and Investment,Planning General/Income,PLN00,Payments to Other Local Authorities,710,2868,Warwickshire County Council,101893,28/03/2018,10258218,TC,272426659,,272426659,PN,3441.6,27/03/2018
Executive Director Office,"Communications, Consultation and Information Team",BTR20,Public Notices,382,722,Bullivant Media Ltd,101937,22/03/2018,10257674,TC,971117625,,971117625,PI,866.4,12/03/2018
Capital Housing Revenue Account,Heating Upgrades,HIM01,Capital Contract Payments,5000,8604.52,Adroit Services Ltd,101939,01/03/2018,10257109,CS,812650159,4729393,812650159,PN,10325.42,27/02/2018
Capital Housing Revenue Account,Heating Upgrades,HIM01,Capital Contract Payments,5000,6453.39,Adroit Services Ltd,101939,08/03/2018,10257276,CS,812650159,4729393,812650159,PN,7744.07,01/03/2018
Housing Revenue Account,Repairs and Maintenance - Void works,UMR09,R&M External Contractors,100,704.25,Adroit Services Ltd,101939,15/03/2018,10257550,CS,812650159,4729393,812650159,PN,8544.29,08/03/2018
Capital Housing Revenue Account,Heating Upgrades,HIM01,Capital Contract Payments,5000,6415.99,Adroit Services Ltd,101939,15/03/2018,10257550,CS,812650159,4729393,812650159,PN,8544.29,08/03/2018
Housing Revenue Account,Gas Heating Systems,UMR01,R&M External Contractors,100,640,Adroit Services Ltd,101939,15/03/2018,10257637,CS,812650159,4729393,812650159,PN,5544.59,12/03/2018
Capital Housing Revenue Account,Heating Upgrades,HIM01,Capital Contract Payments,5000,2128.92,Adroit Services Ltd,101939,15/03/2018,10257637,CS,812650159,4729393,812650159,PN,5544.59,12/03/2018
Capital Housing Revenue Account,Bathroom Modifications,HIS01,Capital Contract Payments,5000,1851.58,Adroit Services Ltd,101939,15/03/2018,10257637,CS,812650159,4729393,812650159,PN,5544.59,12/03/2018
Capital Housing Revenue Account,Heating Upgrades,HIM01,Capital Contract Payments,5000,18318.64,Adroit Services Ltd,101939,28/03/2018,10258169,CS,812650159,4729393,812650159,PN,21982.37,27/03/2018
Housing Revenue Account,Gas Heating Systems,UMR01,R&M External Contractors,100,687.77,Ser-Tec Systems Ltd,108074,28/03/2018,10258175,CS,436865026,2027772,436865026,PN,825.32,27/03/2018
Housing Revenue Account,Gas Heating Systems,UMR01,R&M External Contractors,100,990.6,Ser-Tec Systems Ltd,108074,28/03/2018,10258176,CS,436865026,2027772,436865026,PN,1188.72,27/03/2018
Environment and Public Realm,Crematorium,CRM00,Medical Referees Fees,413,1683.5,Dunchurch Surgery,108687,15/03/2018,10257584,TC,,,,PN,1683.5,09/03/2018
Corporate Resources,Human Resources Centralised Services,RES31,Training fees,11,1055,Shelter Training,109497,01/03/2018,10257107,TC,,,,PN,1266,27/02/2018
Corporate Resources,Human Resources Centralised Services,RES31,Training fees,11,1912,Shelter Training,109497,08/03/2018,10257350,TC,,,,PN,2294.4,02/03/2018
Growth and Investment,Caldecott Park Cafe,BHL01,Building cleaning,170,111.5,1st Class Hygiene Ltd,110029,22/03/2018,10257817,TC,715230275,,715230275,PN,691.5,15/03/2018
Environment and Public Realm,Town Centre Public Conveniences,PCS00,Building cleaning,170,464.75,1st Class Hygiene Ltd,110029,22/03/2018,10257817,TC,715230275,,715230275,PN,691.5,15/03/2018
Corporate Resources,Corporate Property R&M,CPA01,R&M External Contractors,100,493.09,Croxford Electrical Ltd,110451,08/03/2018,10256997,CS,307440876,7751876,307 4408 76,PN,591.71,21/02/2018
Corporate Resources,Corporate Property R&M,CPA01,R&M External Contractors,100,710.79,Croxford Electrical Ltd,110451,08/03/2018,10257203,CS,307440876,7751876,307 4408 76,PN,852.95,27/02/2018
Corporate Resources,Corporate Property R&M,CPA01,R&M External Contractors,100,561.53,Croxford Electrical Ltd,110451,08/03/2018,10257204,CS,307440876,7751876,307 4408 76,PN,673.83,27/02/2018
Growth and Investment,Visitor Centre,VSC00,Other Miscellaneous Expenses,444,1000,Graham Ibbeson Sculpture Ltd,111295,28/03/2018,10250787,TC,436611166,,436611166,PN,1200,04/08/2017
Environment and Public Realm,Crematorium,CRM00,Purchases for Resale,305,453.58,P D Timms,111508,15/03/2018,10257749,TC,420836274,,420836274,PN,544.3,14/03/2018
Environment and Public Realm,Crematorium,CRM00,Purchases for Resale,305,442.33,P D Timms,111508,15/03/2018,10257750,TC,420836274,,420836274,PN,530.8,14/03/2018
Environment and Public Realm,Crematorium,CRM00,Purchases for Resale,305,440.83,P D Timms,111508,15/03/2018,10257754,TC,420836274,,420836274,PN,529,14/03/2018
Environment and Public Realm,Crematorium,CRM00,Purchases for Resale,305,443.83,P D Timms,111508,15/03/2018,10257755,TC,420836274,,420836274,PN,532.6,14/03/2018
Environment and Public Realm,Crematorium,CRM00,Purchases for Resale,305,459.83,P D Timms,111508,15/03/2018,10257756,TC,420836274,,420836274,PN,551.8,14/03/2018
Environment and Public Realm,Crematorium,CRM00,Purchases for Resale,305,425.33,P D Timms,111508,22/03/2018,10257978,TC,420836274,,420836274,PN,510.4,20/03/2018
Environment and Public Realm,Crematorium,CRM00,Purchases for Resale,305,421.33,P D Timms,111508,22/03/2018,10257998,TC,420836274,,420836274,PN,505.6,21/03/2018
Environment and Public Realm,Garage,WVR00,Materials,303,520,Vision Techniques (UK) LTD,111526,08/03/2018,10257239,TC,712562946,,712562946,PN,624,28/02/2018
Growth and Investment,Sports and Recreation,LSD03,Development Activities,450,1046.25,The Chefs Kitchen (UK) Limited,111682,08/03/2018,10257392,TC,765564984,,765 5649 84,PN,1255.5,05/03/2018
Corporate Resources,Council Tax and NNDR Collection,CTX01,Other,763,2325,Experian Ltd,112302,08/03/2018,10256262,TC,145899025,,145899025,PN,2790,01/02/2018
Environment and Public Realm,Parks,PKS00,Materials,303,783.5,PlantScape,112385,22/03/2018,10257903,TC,716340456,,716340456,PI,940.2,19/03/2018
Corporate Resources,Integrated Revenues and Benefits Solution,IRB00,IT Capital Expenditure,5025,52740,Civica UK Ltd,112724,28/03/2018,10257864,TC,391171065,1909454,391171065,PI,63288,19/03/2018
Corporate Resources,Council Tax and NNDR Collection,CTX01,Software Purchase,373,6000,Civica UK Ltd,112724,22/03/2018,10257875,TC,391171065,1909454,391171065,PI,7200,19/03/2018
Corporate Resources,Integrated Revenues and Benefits Solution,IRB00,IT Capital Expenditure,5025,4850,Civica UK Ltd,112724,28/03/2018,10258044,TC,391171065,1909454,391171065,PN,5820,22/03/2018
Communities and Homes,Maintenance of Customer Services Systems,CIS21,Software Maintenance,374,-2445.97,Civica UK Ltd,112724,28/03/2018,10258056,TC,391171065,1909454,391171065,PN,-2935.16,22/03/2018
Environment and Public Realm,Crematorium,CRM00,Purchases for Resale,305,590,Teleshore (UK) Ltd,112868,28/03/2018,10258178,TC,655748006,,655 7480 06,PN,708,27/03/2018
Communities and Homes,CL Grants,CGS00,Grants To Voluntary Organisations,720,4500,Newbold on Avon Rugby Football Club,115674,15/03/2018,10257633,TC,,,,PN,4500,12/03/2018
Corporate Resources,Corporate Property R&M,CPA01,R&M External Contractors,100,2600,Chillaire Ltd,117596,28/03/2018,10258248,CS,,2686557,,PN,3120,27/03/2018
Corporate Resources,Corporate Property R&M,CPA01,R&M External Contractors,100,2600,Chillaire Ltd,117596,28/03/2018,10258249,CS,,2686557,,PN,3120,27/03/2018
Capital Corporate Resources,Corporate Property Enhancements,CPE00,Capital Contract Payments,5000,12245,Chillaire Ltd,117596,28/03/2018,10258253,CS,,2686557,,PN,14694,27/03/2018
Communities and Homes,CL Grants,CGS00,Grants To Voluntary Organisations,720,7500,Overslade Community Association,119698,15/03/2018,10257634,TC,,,,PN,7500,12/03/2018
Corporate Resources,Human Resources Centralised Services,RES31,Training fees,11,2475,Nelson Training,120218,28/03/2018,10258255,TC,781446904,,781446904,PN,2970,28/03/2018
Housing Revenue Account,Property Maintenance,MAN23,Agency Staff,3,1020.25,Venn Group Recruitment Solutions,121594,01/03/2018,10257039,TC,766711704,,766711704,PN,1224.3,22/02/2018
Housing Revenue Account,Property Maintenance,MAN23,Agency Staff,3,755.25,Venn Group Recruitment Solutions,121594,08/03/2018,10257270,TC,766711704,,766711704,PN,906.3,01/03/2018
Housing Revenue Account,Property Maintenance,MAN23,Agency Staff,3,1033.5,Venn Group Recruitment Solutions,121594,22/03/2018,10257539,TC,766711704,,766711704,PN,1240.2,08/03/2018
Housing Revenue Account,Property Maintenance,MAN23,Agency Staff,3,980.5,Venn Group Recruitment Solutions,121594,22/03/2018,10257807,TC,766711704,,766711704,PN,1176.6,15/03/2018
Housing Revenue Account,Property Maintenance,MAN23,Agency Staff,3,1007,Venn Group Recruitment Solutions,121594,28/03/2018,10258060,TC,766711704,,766711704,PN,1208.4,22/03/2018
Communities and Homes,Maintenance of Customer Services Systems,CIS21,Software Maintenance,374,31691.31,Northgate Public Services (UK)  Ltd,121606,15/03/2018,10257416,TC,207588545,968498,207588545,PN,38029.57,06/03/2018
Communities and Homes,Maintenance of Customer Services Systems,CIS21,Software Maintenance,374,829.07,Northgate Public Services (UK)  Ltd,121606,08/03/2018,10257417,TC,207588545,968498,207588545,PN,994.88,06/03/2018
Corporate Resources,Corporate Property Administration,CPA00,Professional Subscriptions,17,523,Personal Redacted Data,122559,01/03/2018,10256933,NT,,,,PN,523,20/02/2018
Housing Revenue Account,Maintenance of Open Spaces,MOS00,External Contractor & Operator,742,822.26,Brinklow Quarry,122921,08/03/2018,10257356,TC,273163073,,273163073,PN,986.71,02/03/2018
Environment and Public Realm,Garage,WVR00,Maintenance of Equipment,301,2152.26,Fueltek Ltd,123134,22/03/2018,10257908,TC,785126413,,785 1264 13,PI,2582.71,19/03/2018
Environment and Public Realm,Street Furniture,LEI22,Capital Contract Payments,5000,1100,Broxap Limited,123396,08/03/2018,10257396,TC,592526420,2583752,592526420,PI,1320,05/03/2018
Environment and Public Realm,Trade Waste Collection,WWC01,Materials,303,1453.38,SSI Schaefer Ltd,123543,01/03/2018,10256963,TC,,,,PI,17277.84,20/02/2018
Capital Environment and Public Realm,Purchase of Waste Bins,PWB00,Capital Contract Payments,5000,12944.82,SSI Schaefer Ltd,123543,01/03/2018,10256963,TC,,,,PI,17277.84,20/02/2018
Growth and Investment,Visitor Centre,VSC00,Purchases for Resale,305,984,Emblem Print Products Ltd,124385,28/03/2018,10258091,TC,507885417,,507885417,PI,1180.8,23/03/2018
Communities and Homes,Ashwood Court Supported Flats,MSF01,New Equipment,300,941.67,Rite Price Furniture Ltd,125153,28/03/2018,10258070,TC,,,,PN,1130,23/03/2018
Environment and Public Realm,Trade Waste Collection,WWC01,Vehicle Repair and Maintenance,200,581.42,Guest Trucks,126437,15/03/2018,10257052,TC,729854781,,729854781,PN,3488.54,22/02/2018
Housing Revenue Account,Repairs and Maintenance - Void works,UMR09,External Contractor & Operator,742,4051.8,M P Hudson & Son,129334,08/03/2018,10257245,CS,770861806,,770861806,PN,4051.8,28/02/2018
Communities and Homes,Central Business Support Services,CSS15,Stationery Supplies,350,472.36,Lyreco,129956,08/03/2018,10257279,TC,927265703,,927265703,PI,566.83,01/03/2018
Communities and Homes,Central Business Support Services,CSS15,Stationery Supplies,350,447.82,Lyreco,129956,08/03/2018,10257282,TC,927265703,,927265703,PI,537.38,01/03/2018
Environment and Public Realm,Parks,PKS00,External Contractor & Operator,742,1177,I D Welding & Fabrications,131407,08/03/2018,10257005,CS,687567859,,687567859,PI,1412.4,21/02/2018
Housing Revenue Account,Unplanned Maintenance and Repair,UMR00,External Contractor & Operator,742,4986,I D Welding & Fabrications,131407,28/03/2018,10258227,CS,687567859,,687567859,PN,5983.2,27/03/2018
Growth and Investment,Planning General/Income,PLN00,Consultancy Costs,740,7500,Aecom Ltd,131603,28/03/2018,10258112,TC,611853162,,611853162,PN,9000,23/03/2018
Environment and Public Realm,Car Parks General,CPK01,Cash Collection,744,986.4,Jade Security Services Ltd,131711,08/03/2018,10257415,TC,642505654,,642505654,PN,1183.68,06/03/2018
Capital Housing Revenue Account,Disabled Adaptations,HCR01,Capital Contract Payments,5000,2750,D K Builders,131946,28/03/2018,10257985,TC,890892572,9067282,890892572,PN,2750,21/03/2018
Growth and Investment,Town Centre CCTV and Management,TVM00,Other Agencies,734,21460.59,Rugby First Ltd - BID,133176,01/03/2018,10256599,TC,874675571,,874675571,PN,25752.71,12/02/2018
Growth and Investment,Town Centre CCTV and Management,TVM00,Other Agencies,734,21460.59,Rugby First Ltd - BID,133176,15/03/2018,10257636,TC,874675571,,874675571,PN,25752.71,12/03/2018
Housing Revenue Account,Fire Alarm maintenance,UMR13,R&M External Contractors,100,124.92,Sunfish Services Ltd,133886,08/03/2018,10257365,CS,845393893,,845393893,PN,759.94,02/03/2018
Housing Revenue Account,Miscellaneous Unplanned Maintenance and Repair,UMR17,R&M External Contractors,100,138.19,Sunfish Services Ltd,133886,08/03/2018,10257365,CS,845393893,,845393893,PN,759.94,02/03/2018
Capital Housing Revenue Account,Fire Risk Prevention Works,HCE18,Capital Contract Payments,5000,370.18,Sunfish Services Ltd,133886,08/03/2018,10257365,CS,845393893,,845393893,PN,759.94,02/03/2018
Communities and Homes,CL Grants,CGS00,Grants To Voluntary Organisations,720,4500,Brownsover Community Association,135180,15/03/2018,10257630,TC,,,,PN,4500,12/03/2018
Growth and Investment,AGM Exhibitions/Outreach,AGM02,Publicity & Marketing,377,720,Casscade Ltd,138997,28/03/2018,10257877,TC,,,,PI,720,19/03/2018
Growth and Investment,AGM Conservation/Documentation,AGM01,Other Miscellaneous Expenses,444,990,Meaco Measurement and Control Ltd,138998,08/03/2018,10257393,TC,866601509,,866 6015 09,PN,1188,05/03/2018
Communities and Homes,CL Grants,CGS00,Grants To Voluntary Organisations,720,17500,Bedworth Rugby & Nuneaton Citizens Advice Bureau,139552,08/03/2018,10257395,TC,,,,PN,21000,05/03/2018
Corporate Resources,Universal Credit,HBA20,Other Agencies,734,1796.2,Bedworth Rugby & Nuneaton Citizens Advice Bureau,139552,28/03/2018,10258244,TC,,,,PN,1796.2,27/03/2018
Corporate Resources,Universal Credit,HBA20,Other Agencies,734,2052.8,Bedworth Rugby & Nuneaton Citizens Advice Bureau,139552,28/03/2018,10258245,TC,,,,PN,2052.8,27/03/2018
Growth and Investment,Planning General/Income,PLN00,Consultancy Costs,740,575,P Rhodes,140076,01/03/2018,10257133,TC,,,,PN,575,27/02/2018
Growth and Investment,Planning General/Income,PLN00,Consultancy Costs,740,575,P Rhodes,140076,01/03/2018,10257134,TC,,,,PN,575,27/02/2018
Growth and Investment,Planning General/Income,PLN00,Consultancy Costs,740,675,P Rhodes,140076,28/03/2018,10258214,TC,,,,PN,675,27/03/2018
Capital Communities and Homes,Payroll/HR scheme,CMP14,IT Capital Expenditure,5025,1211,MHR International UK Ltd,140463,22/03/2018,10257609,TC,705850636,,705850636,PN,1453.2,09/03/2018
Communities and Homes,Maintenance of Customer Services Systems,CIS21,Software Maintenance,374,1454,MHR International UK Ltd,140463,22/03/2018,10257610,TC,705850636,,705850636,PN,1744.8,09/03/2018
Housing Revenue Account,Multi-Storey Flats,MSF00,External Contractor & Operator,742,16128,StoneWall Security Ltd,140775,08/03/2018,10256520,TC,937387578,6587546,937387578,PN,19353.6,09/02/2018
Housing Revenue Account,Multi-Storey Flats,MSF00,External Contractor & Operator,742,15694.56,StoneWall Security Ltd,140775,28/03/2018,10257541,TC,937387578,6587546,937387578,PN,18833.47,08/03/2018
Environment and Public Realm,Car Parks General,CPK01,External Contractor & Operator,742,579.6,StoneWall Security Ltd,140775,15/03/2018,10257542,TC,937387578,6587546,937387578,PN,695.52,08/03/2018
Communities and Homes,Broadband & internet,TEL01,Telephone Expenses,371,970.25,Zen Internet Ltd,141612,01/03/2018,10257041,TC,686049501,3101568,686049501,PN,1164.3,22/02/2018
Environment and Public Realm,Crematorium,CRM00,Telephone Expenses,371,538,Zen Internet Ltd,141612,08/03/2018,10257354,TC,686049501,3101568,686049501,PN,645.6,02/03/2018
Communities and Homes,Broadband & internet,TEL01,Telephone Expenses,371,970.25,Zen Internet Ltd,141612,28/03/2018,10258028,TC,686049501,3101568,686049501,PN,1164.3,22/03/2018
Environment and Public Realm,Domestic Waste Collection/Recycling,REF00,External Contractor & Operator,742,37922.58,Pure Recycling (Warwick) Limited,141883,15/03/2018,10257457,TC,922427047,,922427047,PN,45507.1,06/03/2018
Housing Revenue Account,Gas Heating Systems,UMR01,R&M External Contractors,100,2340,Certsure LLP,142076,01/03/2018,10257108,TC,799123488,2513162,799123488,PN,2808,27/02/2018
Housing Revenue Account,Gas Heating Systems,UMR01,R&M External Contractors,100,780,Certsure LLP,142076,28/03/2018,10258094,TC,799123488,2513162,799123488,PN,936,23/03/2018
Growth and Investment,Planning General/Income,PLN00,Agency Staff,3,1495.32,Comensura Limited,142471,01/03/2018,10256989,TC,755321145,4085767,755 3211 45,PN,10709.51,21/02/2018
Growth and Investment,Gypsy and Traveller Enforcement,PLN10,Agency Staff,3,1256.83,Comensura Limited,142471,01/03/2018,10256989,TC,755321145,4085767,755 3211 45,PN,10709.51,21/02/2018
Housing Revenue Account,Sheltered Housing,AGP00,Agency Staff,3,1215.76,Comensura Limited,142471,15/03/2018,10257154,TC,755321145,4085767,755 3211 45,PN,9706.6,27/02/2018
Growth and Investment,Economic Development General,ECD00,Agency Staff,3,489.88,Comensura Limited,142471,15/03/2018,10257154,TC,755321145,4085767,755 3211 45,PN,9706.6,27/02/2018
Growth and Investment,Planning General/Income,PLN00,Agency Staff,3,1294.72,Comensura Limited,142471,15/03/2018,10257154,TC,755321145,4085767,755 3211 45,PN,9706.6,27/02/2018
Growth and Investment,Planning General/Income,PLN00,Agency Staff,3,1522.32,Comensura Limited,142471,08/03/2018,10257234,TC,755321145,4085767,755 3211 45,PN,11897.65,28/02/2018
Growth and Investment,Planning General/Income,PLN00,Agency Staff,3,1508.82,Comensura Limited,142471,15/03/2018,10257489,TC,755321145,4085767,755 3211 45,PN,10885.18,07/03/2018
Growth and Investment,Gypsy and Traveller Enforcement,PLN10,Agency Staff,3,322.14,Comensura Limited,142471,28/03/2018,10257738,TC,755321145,4085767,755 3211 45,PN,11307.87,14/03/2018
Housing Revenue Account,Estate Management,MAN22,Agency Staff,3,438.3,Comensura Limited,142471,28/03/2018,10257989,TC,755321145,4085767,755 3211 45,PN,10205.67,21/03/2018
Growth and Investment,Planning General/Income,PLN00,Agency Staff,3,2968.59,Comensura Limited,142471,28/03/2018,10257989,TC,755321145,4085767,755 3211 45,PN,10205.67,21/03/2018
Growth and Investment,Gypsy and Traveller Enforcement,PLN10,Agency Staff,3,173.57,Comensura Limited,142471,28/03/2018,10257989,TC,755321145,4085767,755 3211 45,PN,10205.67,21/03/2018
Executive Director Office,Electoral Services,ELC00,Training fees,11,2550,Xpress Software Solutions Ltd,143411,08/03/2018,10257242,TC,771293714,,771293714,PI,3060,28/02/2018
Communities and Homes,CL Grants,CGS00,Grants To Voluntary Organisations,720,8250,Warwickshire Community and Voluntary Action,145040,28/03/2018,10258211,TC,,,,PN,9900,27/03/2018
Corporate Resources,General Financial Services,GFS00,External Audit Fees,748,14365.33,Grant Thornton UK LLP,145501,28/03/2018,10258072,TC,835586102,,835586102,PN,16490.4,23/03/2018
Corporate Resources,General Financial Services,GFS00,External Audit Fees,748,14365.33,Grant Thornton UK LLP,145501,28/03/2018,10258072,TC,835586102,,835586102,PN,748,23/03/2018
Corporate Resources,Corporate Property R&M,CPA01,R&M External Contractors,100,584,ESM Power Limited,145695,28/03/2018,10258013,TC,780689580,4611637,780689580,PN,700.8,21/03/2018
Environment and Public Realm,Crime and Disorder Activities,CAD00,Development Activities,450,3887,Futures Unlocked,145956,15/03/2018,10257211,TC,,5908674,,PI,3887,27/02/2018
Environment and Public Realm,Crime and Disorder Activities,CAD00,Development Activities,450,18500,Futures Unlocked,145956,28/03/2018,10257907,TC,,5908674,,PI,18500,19/03/2018
Corporate Resources,Legal Services,DEM20,Conference & Seminar Fees,401,500,MBL Seminars,146589,28/03/2018,10258179,TC,816093826,4746709,816093826,PN,600,27/03/2018
Corporate Resources,Corporate Property Central Utilities,CPA02,Electricity,130,9311.75,Total Gas & Power Ltd,146631,01/03/2018,10256692,TC,689638949,2172239,689638949,PN,12920.62,13/02/2018
Environment and Public Realm,Crematorium,CRM00,Electricity,130,1272.31,Total Gas & Power Ltd,146631,01/03/2018,10256692,TC,689638949,2172239,689638949,PN,12920.62,13/02/2018
Housing Revenue Account,Unplanned Maintenance and Repair,UMR00,Electricity,130,140.29,Total Gas & Power Ltd,146631,01/03/2018,10256692,TC,689638949,2172239,689638949,PN,12920.62,13/02/2018
Environment and Public Realm,WSU Depot,WDP00,Electricity,130,67.2,Total Gas & Power Ltd,146631,01/03/2018,10256692,TC,689638949,2172239,689638949,PN,12920.62,13/02/2018
Housing Revenue Account,Sheltered Housing,AGP00,Electricity,130,214.81,Total Gas & Power Ltd,146631,15/03/2018,10257647,TC,689638949,2172239,689638949,PN,13275.01,12/03/2018
Housing Revenue Account,Alfred Green Close AP,AGP01,Electricity,130,283.04,Total Gas & Power Ltd,146631,15/03/2018,10257647,TC,689638949,2172239,689638949,PN,13275.01,12/03/2018
Housing Revenue Account,Avon Court AP,AGP02,Electricity,130,243.66,Total Gas & Power Ltd,146631,15/03/2018,10257647,TC,689638949,2172239,689638949,PN,13275.01,12/03/2018
Housing Revenue Account,Dickinson Court AP,AGP03,Electricity,130,441.06,Total Gas & Power Ltd,146631,15/03/2018,10257647,TC,689638949,2172239,689638949,PN,13275.01,12/03/2018
Housing Revenue Account,Duffy Place AP,AGP04,Electricity,130,228.58,Total Gas & Power Ltd,146631,15/03/2018,10257647,TC,689638949,2172239,689638949,PN,13275.01,12/03/2018
Housing Revenue Account,Frederick Press Way AP,AGP06,Electricity,130,525.83,Total Gas & Power Ltd,146631,15/03/2018,10257647,TC,689638949,2172239,689638949,PN,13275.01,12/03/2018
Housing Revenue Account,John Thwaites Close AP,AGP08,Electricity,130,100.16,Total Gas & Power Ltd,146631,15/03/2018,10257647,TC,689638949,2172239,689638949,PN,13275.01,12/03/2018
Housing Revenue Account,Mercer Court AP,AGP09,Electricity,130,258.3,Total Gas & Power Ltd,146631,15/03/2018,10257647,TC,689638949,2172239,689638949,PN,13275.01,12/03/2018
Housing Revenue Account,Pettiver Crescent I AP,AGP10,Electricity,130,276.36,Total Gas & Power Ltd,146631,15/03/2018,10257647,TC,689638949,2172239,689638949,PN,13275.01,12/03/2018
Housing Revenue Account,Robotham Close AP,AGP11,Electricity,130,283.99,Total Gas & Power Ltd,146631,15/03/2018,10257647,TC,689638949,2172239,689638949,PN,13275.01,12/03/2018
Housing Revenue Account,Stacey Court AP,AGP12,Electricity,130,78.76,Total Gas & Power Ltd,146631,15/03/2018,10257647,TC,689638949,2172239,689638949,PN,13275.01,12/03/2018
Housing Revenue Account,Stretton Court AP,AGP13,Electricity,130,110.25,Total Gas & Power Ltd,146631,15/03/2018,10257647,TC,689638949,2172239,689638949,PN,13275.01,12/03/2018
Housing Revenue Account,Sun Street/Windsor Street AP,AGP14,Electricity,130,258.98,Total Gas & Power Ltd,146631,15/03/2018,10257647,TC,689638949,2172239,689638949,PN,13275.01,12/03/2018
Housing Revenue Account,Lesley Souter House AP,AGP16,Electricity,130,607.73,Total Gas & Power Ltd,146631,15/03/2018,10257647,TC,689638949,2172239,689638949,PN,13275.01,12/03/2018
Housing Revenue Account,Tanser Court AP,AGP17,Electricity,130,490.99,Total Gas & Power Ltd,146631,15/03/2018,10257647,TC,689638949,2172239,689638949,PN,13275.01,12/03/2018
Housing Revenue Account,Edward Court AP,AGP19,Electricity,130,276.26,Total Gas & Power Ltd,146631,15/03/2018,10257647,TC,689638949,2172239,689638949,PN,13275.01,12/03/2018
Housing Revenue Account,Albert Square AP,AGP20,Electricity,130,902.89,Total Gas & Power Ltd,146631,15/03/2018,10257647,TC,689638949,2172239,689638949,PN,13275.01,12/03/2018
Housing Revenue Account,Eliot Court AP,AGP25,Electricity,130,74.47,Total Gas & Power Ltd,146631,15/03/2018,10257647,TC,689638949,2172239,689638949,PN,13275.01,12/03/2018
Housing Revenue Account,Clare Court Site,AGP27,Electricity,130,34.09,Total Gas & Power Ltd,146631,15/03/2018,10257647,TC,689638949,2172239,689638949,PN,13275.01,12/03/2018
Housing Revenue Account,Alexandra/James Court AP,AGP30,Electricity,130,415.32,Total Gas & Power Ltd,146631,15/03/2018,10257647,TC,689638949,2172239,689638949,PN,13275.01,12/03/2018
Housing Revenue Account,Hirst Close AP,AGP33,Electricity,130,86.07,Total Gas & Power Ltd,146631,15/03/2018,10257647,TC,689638949,2172239,689638949,PN,13275.01,12/03/2018
Housing Revenue Account,Assheton Close AP,AGP36,Electricity,130,59.17,Total Gas & Power Ltd,146631,15/03/2018,10257647,TC,689638949,2172239,689638949,PN,13275.01,12/03/2018
Housing Revenue Account,Bennett Court/Warwick Road AP,AGP38,Electricity,130,189.7,Total Gas & Power Ltd,146631,15/03/2018,10257647,TC,689638949,2172239,689638949,PN,13275.01,12/03/2018
Housing Revenue Account,Brookside Pailton AP,AGP40,Electricity,130,54.08,Total Gas & Power Ltd,146631,15/03/2018,10257647,TC,689638949,2172239,689638949,PN,13275.01,12/03/2018
Housing Revenue Account,Clifton Road AP,AGP41,Electricity,130,32.45,Total Gas & Power Ltd,146631,15/03/2018,10257647,TC,689638949,2172239,689638949,PN,13275.01,12/03/2018
Housing Revenue Account,Deepmore Road/Lytham Road AP,AGP42,Electricity,130,169.38,Total Gas & Power Ltd,146631,15/03/2018,10257647,TC,689638949,2172239,689638949,PN,13275.01,12/03/2018
Housing Revenue Account,Edmondson Close Dunchurch AP,AGP44,Electricity,130,166.16,Total Gas & Power Ltd,146631,15/03/2018,10257647,TC,689638949,2172239,689638949,PN,13275.01,12/03/2018
Housing Revenue Account,Featherbed Lane I AP,AGP45,Electricity,130,187.04,Total Gas & Power Ltd,146631,15/03/2018,10257647,TC,689638949,2172239,689638949,PN,13275.01,12/03/2018
Housing Revenue Account,Fox Close AP,AGP47,Electricity,130,35.09,Total Gas & Power Ltd,146631,15/03/2018,10257647,TC,689638949,2172239,689638949,PN,13275.01,12/03/2018
Housing Revenue Account,Great Balance Brinklow AP,AGP48,Electricity,130,26.86,Total Gas & Power Ltd,146631,15/03/2018,10257647,TC,689638949,2172239,689638949,PN,13275.01,12/03/2018
Housing Revenue Account,Harold Cox Place AP,AGP51,Electricity,130,74.38,Total Gas & Power Ltd,146631,15/03/2018,10257647,TC,689638949,2172239,689638949,PN,13275.01,12/03/2018
Housing Revenue Account,Jackson Road I AP,AGP53,Electricity,130,30.06,Total Gas & Power Ltd,146631,15/03/2018,10257647,TC,689638949,2172239,689638949,PN,13275.01,12/03/2018
Housing Revenue Account,Lever Road I AP,AGP57,Electricity,130,148.67,Total Gas & Power Ltd,146631,15/03/2018,10257647,TC,689638949,2172239,689638949,PN,13275.01,12/03/2018
Housing Revenue Account,Meadow Way/Primrose Court AP,AGP58,Electricity,130,105.83,Total Gas & Power Ltd,146631,15/03/2018,10257647,TC,689638949,2172239,689638949,PN,13275.01,12/03/2018
Housing Revenue Account,Norman Road AP,AGP60,Electricity,130,10.23,Total Gas & Power Ltd,146631,15/03/2018,10257647,TC,689638949,2172239,689638949,PN,13275.01,12/03/2018
Housing Revenue Account,Patterdale AP,AGP61,Electricity,130,26.7,Total Gas & Power Ltd,146631,15/03/2018,10257647,TC,689638949,2172239,689638949,PN,13275.01,12/03/2018
Housing Revenue Account,The Kent AP,AGP67,Electricity,130,57.7,Total Gas & Power Ltd,146631,15/03/2018,10257647,TC,689638949,2172239,689638949,PN,13275.01,12/03/2018
Housing Revenue Account,Victoria Street/Lawford Road AP,AGP68,Electricity,130,13.83,Total Gas & Power Ltd,146631,15/03/2018,10257647,TC,689638949,2172239,689638949,PN,13275.01,12/03/2018
Housing Revenue Account,Parkfield Road/Lea Crescent AP,AGP71,Electricity,130,170.98,Total Gas & Power Ltd,146631,15/03/2018,10257647,TC,689638949,2172239,689638949,PN,13275.01,12/03/2018
Housing Revenue Account,Pennington Street/Round Street AP,AGP72,Electricity,130,112.91,Total Gas & Power Ltd,146631,15/03/2018,10257647,TC,689638949,2172239,689638949,PN,13275.01,12/03/2018
Housing Revenue Account,Control Centre CCTV,CCE01,Electricity,130,588.08,Total Gas & Power Ltd,146631,15/03/2018,10257647,TC,689638949,2172239,689638949,PN,13275.01,12/03/2018
Housing Revenue Account,Supervision and Management General,MAN00,Electricity,130,188.44,Total Gas & Power Ltd,146631,15/03/2018,10257647,TC,689638949,2172239,689638949,PN,13275.01,12/03/2018
Housing Revenue Account,Multi-Storey Flats,MSF00,Electricity,130,3219.59,Total Gas & Power Ltd,146631,15/03/2018,10257647,TC,689638949,2172239,689638949,PN,13275.01,12/03/2018
Communities and Homes,Woodside Park,TVR00,Electricity,130,472.39,Total Gas & Power Ltd,146631,15/03/2018,10257647,TC,689638949,2172239,689638949,PN,13275.01,12/03/2018
Corporate Resources,Corporate Property Central Utilities,CPA02,Electricity,130,2319.57,Total Gas & Power Ltd,146631,22/03/2018,10257648,TC,689638949,2172239,689638949,PN,2716.34,12/03/2018
Corporate Resources,Corporate Property Central Utilities,CPA02,Electricity,130,7223.95,Total Gas & Power Ltd,146631,22/03/2018,10257699,TC,689638949,2172239,689638949,PN,11002.07,13/03/2018
Environment and Public Realm,Crematorium,CRM00,Electricity,130,1193.65,Total Gas & Power Ltd,146631,22/03/2018,10257699,TC,689638949,2172239,689638949,PN,11002.07,13/03/2018
Housing Revenue Account,Unplanned Maintenance and Repair,UMR00,Electricity,130,712.82,Total Gas & Power Ltd,146631,22/03/2018,10257699,TC,689638949,2172239,689638949,PN,11002.07,13/03/2018
Environment and Public Realm,WSU Depot,WDP00,Electricity,130,60.28,Total Gas & Power Ltd,146631,22/03/2018,10257699,TC,689638949,2172239,689638949,PN,11002.07,13/03/2018
Environment and Public Realm,Regulatory Services,REG00,Subscriptions,421,2500,Mallard Consultancy Ltd,146807,22/03/2018,10257813,TC,705838620,3486991,705838620,PN,3000,15/03/2018
Corporate Resources,Corporate Property R&M,CPA01,R&M External Contractors,100,3612,Environmental Essentials Ltd,146842,15/03/2018,10257638,TC,844887474,5097507,844887474,PN,4334.4,12/03/2018
Housing Revenue Account,Unplanned Maintenance and Repair,UMR00,R&M External Contractors,100,88,Environmental Essentials Ltd,146842,28/03/2018,10258054,TC,844887474,5097507,844887474,PN,3220.8,22/03/2018
Housing Revenue Account,Asbestos Surveys,UMR05,R&M External Contractors,100,2596,Environmental Essentials Ltd,146842,28/03/2018,10258054,TC,844887474,5097507,844887474,PN,3220.8,22/03/2018
Corporate Resources,Retired Employees,RET00,Additional Pension Payments,14,9492,WCC Pension Fund,146914,08/03/2018,10257329,NT,,,,PN,9492,01/03/2018
Corporate Resources,Retired Employees,RET00,Employers' Superannuation Contribution,2,17916.67,WCC Pension Fund,146914,15/03/2018,10257718,NT,,,,PN,17916.67,13/03/2018
Growth and Investment,On Track,LSD04,Development Activities,450,481.67,YHA (England & Wales) Ltd,147242,22/03/2018,10257863,TC,856420717,,856420717,PI,578,19/03/2018
Corporate Resources,Corporate Property R&M,CPA01,R&M External Contractors,100,485,AirTech Controls Ltd,147262,08/03/2018,10257248,TC,670991601,3262605,670991601,PN,582,28/02/2018
Corporate Resources,Corporate Property R&M,CPA01,R&M External Contractors,100,2107,AirTech Controls Ltd,147262,08/03/2018,10257249,TC,670991601,3262605,670991601,PN,2528.4,28/02/2018
Growth and Investment,Art Gallery and Museum,AGM00,Window Cleaning,172,297,SJ Cleaning (Midlands) Ltd,147273,22/03/2018,10257806,TC,930667320,6855140,930667320,PN,1404,15/03/2018
Growth and Investment,The Benn Hall,BHL00,Window Cleaning,172,106,SJ Cleaning (Midlands) Ltd,147273,22/03/2018,10257806,TC,930667320,6855140,930667320,PN,1404,15/03/2018
Environment and Public Realm,Cemeteries General,CEM00,Window Cleaning,172,45,SJ Cleaning (Midlands) Ltd,147273,22/03/2018,10257806,TC,930667320,6855140,930667320,PN,1404,15/03/2018
Environment and Public Realm,Car Parks General,CPK01,Window Cleaning,172,21,SJ Cleaning (Midlands) Ltd,147273,22/03/2018,10257806,TC,930667320,6855140,930667320,PN,1404,15/03/2018
Corporate Resources,Town Hall,OFF00,Window Cleaning,172,598,SJ Cleaning (Midlands) Ltd,147273,22/03/2018,10257806,TC,930667320,6855140,930667320,PN,1404,15/03/2018
Environment and Public Realm,Town Centre Public Conveniences,PCS00,Window Cleaning,172,21,SJ Cleaning (Midlands) Ltd,147273,22/03/2018,10257806,TC,930667320,6855140,930667320,PN,1404,15/03/2018
Environment and Public Realm,Parks,PKS00,Window Cleaning,172,41,SJ Cleaning (Midlands) Ltd,147273,22/03/2018,10257806,TC,930667320,6855140,930667320,PN,1404,15/03/2018
Environment and Public Realm,WSU Depot,WDP00,Window Cleaning,172,41,SJ Cleaning (Midlands) Ltd,147273,22/03/2018,10257806,TC,930667320,6855140,930667320,PN,1404,15/03/2018
Capital Growth and Investment,Benn Hall refurbishment,BHR00,Capital Contract Payments,5000,6829.6,Arden Construction Ltd,147430,22/03/2018,10257720,CS,589378956,2722631,589378956,PN,35670.17,13/03/2018
Capital Corporate Resources,Corporate Property Enhancements,CPE00,Capital Contract Payments,5000,22895.54,Arden Construction Ltd,147430,22/03/2018,10257720,CS,589378956,2722631,589378956,PN,35670.17,13/03/2018
Growth and Investment,The Benn Hall,BHL00,Subscriptions,421,1861.3,PPL PRS,147770,15/03/2018,10257590,TC,,,,PN,2233.56,09/03/2018
,Hall of Fame,TRY00,Publicity & Marketing,377,450,Cole Creative Communications Ltd,147857,01/03/2018,10257075,TC,748173608,,748173608,PN,540,22/02/2018
Executive Director Office,"Communications, Consultation and Information Team",BTR20,Publicity & Marketing,377,2050,Cole Creative Communications Ltd,147857,01/03/2018,10257076,TC,748173608,,748173608,PN,2460,22/02/2018
Corporate Resources,Corporate Property R&M,CPA01,R&M External Contractors,100,12170,Press & Starkey,148069,22/03/2018,10256513,TC,,,,PN,14604,09/02/2018
,Open Spaces Refurbishment - Safety Improvements,LEI24,Capital Contract Payments,5000,47217,J P Landscapes & Construction Ltd,148502,01/03/2018,10256874,CS,844237818,4840565,844 2378 18,PI,56660.4,19/02/2018
Environment and Public Realm,Parks,PKS00,External Contractor & Operator,742,488,J P Landscapes & Construction Ltd,148502,01/03/2018,10256962,CS,844237818,4840565,844 2378 18,PI,585.6,20/02/2018
Housing Revenue Account,Gas Heating Systems,UMR01,R&M External Contractors,100,28727.64,Robert Heath Heating Ltd,148858,08/03/2018,10257434,CS,927490989,1773699,927 4909 89,PN,34473.17,06/03/2018
Housing Revenue Account,Gas Heating Systems,UMR01,R&M External Contractors,100,322.55,Robert Heath Heating Ltd,148858,15/03/2018,10257640,CS,927490989,1773699,927 4909 89,PN,1395.01,12/03/2018
Housing Revenue Account,Repairs and Maintenance - Void works,UMR09,R&M External Contractors,100,839.96,Robert Heath Heating Ltd,148858,15/03/2018,10257640,CS,927490989,1773699,927 4909 89,PN,1395.01,12/03/2018
Housing Revenue Account,Gas Heating Systems,UMR01,R&M External Contractors,100,28556.21,Robert Heath Heating Ltd,148858,22/03/2018,10257925,CS,927490989,1773699,927 4909 89,PN,34267.45,19/03/2018
Growth and Investment,Economic Development General,ECD00,Borough Local Plan,452,2552,LUC,148877,08/03/2018,10257438,TC,523447261,2549296,523447261,PN,3062.4,06/03/2018
Growth and Investment,The Benn Hall,BHL00,Building cleaning,170,730,FiltaSonix UK Ltd,148964,28/03/2018,10257974,TC,874262017,5629291,874262017,PN,876,20/03/2018
Housing Revenue Account,Repairs and Maintenance - Void works,UMR09,R&M External Contractors,100,40,Elite Surveyors Ltd,149107,01/03/2018,10256911,TC,924012466,6435692,924012466,PN,528,19/02/2018
Housing Revenue Account,Miscellaneous Unplanned Maintenance and Repair,UMR17,R&M External Contractors,100,40,Elite Surveyors Ltd,149107,01/03/2018,10256911,TC,924012466,6435692,924012466,PN,528,19/02/2018
Housing Revenue Account,Voids & Allocations Team,MAN24,External Contractor & Operator,742,360,Elite Surveyors Ltd,149107,01/03/2018,10256911,TC,924012466,6435692,924012466,PN,528,19/02/2018
Growth and Investment,Family Lifestyle Project,LSD11,Development Activities,450,770,GLL ( Greenwich Leisure Ltd),149240,22/03/2018,10257836,TC,626592225,27793R,626592225,PN,770,16/03/2018
Environment and Public Realm,Parks,PKS00,Materials,303,687.5,AHS Ltd,149255,08/03/2018,10257144,TC,621583942,2803955,621583942,PI,825,27/02/2018
Housing Revenue Account,Miscellaneous Unplanned Maintenance and Repair,UMR17,R&M External Contractors,100,667.2,Arden Health and Safety,149273,01/03/2018,10257110,TC,,,,PN,800.64,27/02/2018
Capital Housing Revenue Account,Fire Risk Prevention Works,HCE18,Capital Contract Payments,5000,842.18,Arden Health and Safety,149273,08/03/2018,10257418,TC,,,,PN,1010.62,06/03/2018
Housing Revenue Account,Miscellaneous Unplanned Maintenance and Repair,UMR17,R&M External Contractors,100,653.3,Arden Health and Safety,149273,28/03/2018,10258170,TC,,,,PN,783.96,27/03/2018
Environment and Public Realm,Garage,WVR00,Materials,303,722.9,Tom Tom International BV,149311,15/03/2018,10257726,TC,273433560,,273433560,PN,867.48,13/03/2018
Environment and Public Realm,Crematorium,CRM00,Purchases for Resale,305,440,Scribes Plus Ltd,149352,15/03/2018,10257382,TC,887285660,5838911,887285660,PN,528,05/03/2018
Housing Revenue Account,Fire Alarm maintenance,UMR13,R&M External Contractors,100,1,Close Circuit Security Services Ltd,149426,08/03/2018,10257420,TC,695360895,3543850,695360895,PN,4947.78,06/03/2018
Housing Revenue Account,Miscellaneous Unplanned Maintenance and Repair,UMR17,R&M External Contractors,100,584.88,Close Circuit Security Services Ltd,149426,08/03/2018,10257420,TC,695360895,3543850,695360895,PN,4947.78,06/03/2018
Housing Revenue Account,Control Centre CCTV,CCE01,Maintenance of Equipment,301,3183.16,Close Circuit Security Services Ltd,149426,08/03/2018,10257420,TC,695360895,3543850,695360895,PN,4947.78,06/03/2018
Capital Housing Revenue Account,Fire Risk Prevention Works,HCE18,Capital Contract Payments,5000,354.11,Close Circuit Security Services Ltd,149426,08/03/2018,10257420,TC,695360895,3543850,695360895,PN,4947.78,06/03/2018
Environment and Public Realm,Crematorium,CRM00,R&M External Contractors,100,17986.33,Facultatieve Technologies Limited,149571,08/03/2018,10257358,TC,GB169285327,633222,GB 169 2853 27,PN,21583.6,02/03/2018
Environment and Public Realm,Crematorium,CRM00,R&M External Contractors,100,765.5,Vivedia Ltd,149624,01/03/2018,10256561,TC,8830029332,,8830029332,PN,918.6,09/02/2018
Environment and Public Realm,Crematorium,CRM00,R&M External Contractors,100,646.9,Vivedia Ltd,149624,01/03/2018,10256562,TC,8830029332,,8830029332,PN,776.28,09/02/2018
Environment and Public Realm,Crematorium,CRM00,Organist Fees,414,1461,Tracey Daulman,149686,01/03/2018,10257216,TC,,,,PN,1461,27/02/2018
Environment and Public Realm,Crematorium,CRM00,Organist Fees,414,1755,Tracey Daulman,149686,28/03/2018,10258215,TC,,,,PN,1755,27/03/2018
Environment and Public Realm,Crematorium,CRM00,Organist Fees,414,550,Gordon Croft,149763,01/03/2018,10257252,TC,,,,PN,550,28/02/2018
Capital Housing Revenue Account,Heating Upgrades,HIM01,Capital Contract Payments,5000,1872.43,PTS Rugby,149845,08/03/2018,10257312,TC,408556737,,408556737,PN,2246.92,01/03/2018
Capital Housing Revenue Account,Heating Upgrades,HIM01,Capital Contract Payments,5000,904.75,PTS Rugby,149845,08/03/2018,10257313,TC,408556737,,408556737,PN,1085.7,01/03/2018
Capital Housing Revenue Account,Heating Upgrades,HIM01,Capital Contract Payments,5000,17118.86,PTS Rugby,149845,08/03/2018,10257314,TC,408556737,,408556737,PN,20542.63,01/03/2018
Capital Housing Revenue Account,Heating Upgrades,HIM01,Capital Contract Payments,5000,2725.46,PTS Rugby,149845,08/03/2018,10257315,TC,408556737,,408556737,PN,3270.55,01/03/2018
Capital Housing Revenue Account,Heating Upgrades,HIM01,Capital Contract Payments,5000,734.66,PTS Rugby,149845,15/03/2018,10257744,TC,408556737,,408556737,PN,881.59,14/03/2018
Capital Housing Revenue Account,Heating Upgrades,HIM01,Capital Contract Payments,5000,951.38,PTS Rugby,149845,15/03/2018,10257745,TC,408556737,,408556737,PN,1141.66,14/03/2018
Capital Housing Revenue Account,Heating Upgrades,HIM01,Capital Contract Payments,5000,2873.13,PTS Rugby,149845,15/03/2018,10257746,TC,408556737,,408556737,PN,3447.76,14/03/2018
Capital Housing Revenue Account,Heating Upgrades,HIM01,Capital Contract Payments,5000,1919.61,PTS Rugby,149845,15/03/2018,10257747,TC,408556737,,408556737,PN,2303.53,14/03/2018
Executive Director Office,"Communications, Consultation and Information Team",BTR20,Publicity & Marketing,377,1500,Peninsula Design,149882,08/03/2018,10257404,TC,,,,PI,1500,06/03/2018
Corporate Resources,Council Tax and NNDR Collection,CTX01,Subscriptions,421,3500,Inform CPI Ltd,149953,28/03/2018,10254652,TC,880928388,5599551,880928388,PN,4200,06/12/2017
Corporate Resources,Council Tax and NNDR Collection,CTX01,Other Agencies,734,2200,Inform CPI Ltd,149953,01/03/2018,10256898,TC,880928388,5599551,880928388,PN,2640,19/02/2018
Corporate Resources,Council Tax and NNDR Collection,CTX01,Other Agencies,734,6225,Inform CPI Ltd,149953,01/03/2018,10256899,TC,880928388,5599551,880928388,PN,7470,19/02/2018
Corporate Resources,Council Tax and NNDR Collection,CTX01,Other Agencies,734,1050,Inform CPI Ltd,149953,01/03/2018,10256900,TC,880928388,5599551,880928388,PN,1260,19/02/2018
Corporate Resources,Council Tax and NNDR Collection,CTX01,Other Agencies,734,1150,Inform CPI Ltd,149953,01/03/2018,10256901,TC,880928388,5599551,880928388,PN,1380,19/02/2018
Capital Housing Revenue Account,Kitchen Modifications,HIK10,Capital Contract Payments,5000,11000.94,Moores Furniture,150018,22/03/2018,10257816,TC,613366162,1083749,613366162,PN,13201.13,15/03/2018
Capital Housing Revenue Account,Kitchen Modifications,HIK10,Capital Contract Payments,5000,5718.24,Moores Furniture,150018,28/03/2018,10258053,TC,613366162,1083749,613366162,PN,6861.89,22/03/2018
Communities and Homes,ITC & Support Services,CIS10,Other Miscellaneous Expenses,444,282.49,Weightmans LLP,150024,15/03/2018,10257527,TC,974825769,,974825769,PN,855.09,07/03/2018
Growth and Investment,Economic Development General,ECD00,Borough Local Plan,452,8000,G L Hearn Ltd,150112,15/03/2018,10257580,TC,735927209,3798877,735927209,PI,9600,08/03/2018
Environment and Public Realm,Safety and Resilience,EPL00,Maintenance of Equipment,301,645,HAV Control Ltd,150176,15/03/2018,10257159,TC,9861205078,7173589,9861205078,PN,774,27/02/2018
Environment and Public Realm,Car Parks General,CPK01,Tyres,205,44,Lodge Tyre Co Ltd,150185,01/03/2018,10256941,TC,,531793,,PN,639,20/02/2018
Housing Revenue Account,Unplanned Maintenance and Repair,UMR00,Tyres,205,101,Lodge Tyre Co Ltd,150185,01/03/2018,10256941,TC,,531793,,PN,639,20/02/2018
Housing Revenue Account,Unplanned Maintenance and Repair,UMR00,Tyres,205,196,Lodge Tyre Co Ltd,150185,08/03/2018,10257077,TC,,531793,,PN,547.2,22/02/2018
Capital Housing Revenue Account,Lifeline Renewal Programme,HCE21,New Equipment,300,430.56,DACT Fire & Security Ltd,150187,22/03/2018,10257862,TC,211401577,8122194,211401577,PI,516.67,19/03/2018
Communities and Homes,Central Business Support Services,CSS15,Stationery Supplies,350,768.35,Peak Envelopes T/A Ebury Ltd,150217,22/03/2018,10257764,TC,224545672,,224545672,PI,922.02,14/03/2018
Growth and Investment,Visitor Centre,VSC00,Publicity & Marketing,377,1220,GES Ltd,150280,01/03/2018,10257079,TC,661550053,,661550053,PN,1464,22/02/2018
Executive Director Office,"Communications, Consultation and Information Team",BTR20,Publicity & Marketing,377,10065,Warwick Printing Company Ltd,150283,28/03/2018,10258062,TC,418870039,1995758,418870039,PI,10065,22/03/2018
Corporate Resources,Corporate Assurance,RES40,Consultancy Costs,740,4875,TIAA,150337,28/03/2018,10258069,TC,792453014,,792453014,PI,5850,22/03/2018
Environment and Public Realm,Trade Waste Collection,WWC01,Vehicle Repair and Maintenance,200,765.59,Rygor Commercials,150457,08/03/2018,10257051,TC,4230072,1884237,4230072,PN,918.71,22/02/2018
Environment and Public Realm,Trade Waste Collection,WWC01,Vehicle Repair and Maintenance,200,173.6,Rygor Commercials,150457,15/03/2018,10257343,TC,4230072,1884237,4230072,PN,699.95,02/03/2018
Corporate Resources,GF - Taxation and Non Specific Grant Income,CRA03,Business Rates Section 31 Grants,2407,29921,Department for Communities and Local Government,150458,22/03/2018,10257693,TC,,,,PN,29921,13/03/2018
Environment and Public Realm,Parks,PKS00,External Contractor & Operator,742,3906.3,The Play Inspection Company,150549,01/03/2018,10256188,TC,845184023,5216477,845184023,PI,4687.56,30/01/2018
Corporate Resources,General Financial Services,GFS00,External Contractor & Operator,742,2000,Mishcon de Reya,150662,28/03/2018,10258078,TC,232425005,,232425005,PN,2400,23/03/2018
Communities and Homes,ITC & Support Services,CIS10,Software/Equipment Licences,379,677.5,Insight UK Ltd,150801,22/03/2018,10257762,TC,746075129,2579852,746075129,PI,813,14/03/2018
Housing Revenue Account,Multi-Storey Flats,MSF00,Other Miscellaneous Expenses,444,500,Building Research Establishment Ltd,150826,01/03/2018,10256999,TC,689949927,3319324,689949927,PN,600,21/02/2018
Housing Revenue Account,Multi-Storey Flats,MSF00,Other Miscellaneous Expenses,444,2557.38,Building Research Establishment Ltd,150826,28/03/2018,10258185,TC,689949927,3319324,689949927,PN,3068.86,27/03/2018
Corporate Resources,GF - Financing and Investment Income and Expenditure,CRA02,Interest Repayments,2200,15,HMRC Shipley,150936,22/03/2018,10257835,NT,,,,PN,9804,16/03/2018
Capital Housing Revenue Account,Purchase of Council Houses,PUR00,Capital Contract Payments,5000,9789,HMRC Shipley,150936,22/03/2018,10257835,NT,,,,PN,9804,16/03/2018
Housing Revenue Account,Lift maintenance,UMR14,R&M External Contractors,100,2655,Lift & Engineering Services Ltd,150984,15/03/2018,10257552,TC,377355519,1913516,377355519,PN,3186,08/03/2018
Capital Housing Revenue Account,Fire Risk Prevention Works,HCE18,Capital Contract Payments,5000,1839.43,Lift & Engineering Services Ltd,150984,15/03/2018,10257553,TC,377355519,1913516,377355519,PN,2207.32,08/03/2018
Housing Revenue Account,Lift maintenance,UMR14,R&M External Contractors,100,2655,Lift & Engineering Services Ltd,150984,22/03/2018,10257945,TC,377355519,1913516,377355519,PN,3186,20/03/2018
Growth and Investment,Play Projects (revenue),LSD09,Development Activities,450,674.04,Long Lawford Methodist Church,151019,08/03/2018,10257425,NT,,,,PN,674.04,06/03/2018
Growth and Investment,Economic Development General,ECD00,Borough Local Plan,452,3750,Dixon Searle Partnership Ltd,151060,01/03/2018,10256315,TC,241819312,10149678,241819312,PI,4500,02/02/2018
Growth and Investment,Planning General/Income,PLN00,Consultancy Costs,740,900,Dixon Searle Partnership Ltd,151060,01/03/2018,10257217,TC,241819312,10149678,241819312,PN,1080,27/02/2018
Communities and Homes,ITC & Support Services,CIS10,Consultancy Costs,740,850,PCS Business Systems Ltd,151097,28/03/2018,10258186,TC,918599762,3082062,918599762,PI,1020,27/03/2018
Communities and Homes,Central Telephone Service,TEL00,New Equipment,300,755.3,Exchange Communications,151167,22/03/2018,10257763,TC,208391707,SC499057,208391707,PI,906.36,14/03/2018
Growth and Investment,Art Gallery and Museum,AGM00,Childcare vouchers admin fee,7,9.72,Busy Bees Benefits Ltd,151230,08/03/2018,10257381,NT,,6758298,,PN,3530.91,05/03/2018
Communities and Homes,ITC & Support Services,CIS10,Childcare vouchers admin fee,7,4.96,Busy Bees Benefits Ltd,151230,08/03/2018,10257381,NT,,6758298,,PN,3530.91,05/03/2018
Corporate Resources,Council Tax and NNDR Collection,CTX01,Childcare vouchers admin fee,7,10.52,Busy Bees Benefits Ltd,151230,08/03/2018,10257381,NT,,6758298,,PN,3530.91,05/03/2018
Corporate Resources,Legal Services,DEM20,Childcare vouchers admin fee,7,8.01,Busy Bees Benefits Ltd,151230,08/03/2018,10257381,NT,,6758298,,PN,3530.91,05/03/2018
Growth and Investment,Economic Development General,ECD00,Childcare vouchers admin fee,7,0.8,Busy Bees Benefits Ltd,151230,08/03/2018,10257381,NT,,6758298,,PN,3530.91,05/03/2018
,WTHEIP - Warwickshire Together Homelessness Early Intervention Project,HIP00,Childcare vouchers admin fee,7,9.72,Busy Bees Benefits Ltd,151230,08/03/2018,10257381,NT,,6758298,,PN,3530.91,05/03/2018
Growth and Investment,Sports and Recreation,LSD03,Childcare vouchers admin fee,7,8.4,Busy Bees Benefits Ltd,151230,08/03/2018,10257381,NT,,6758298,,PN,3530.91,05/03/2018
Housing Revenue Account,Estate Management,MAN22,Childcare vouchers admin fee,7,9.72,Busy Bees Benefits Ltd,151230,08/03/2018,10257381,NT,,6758298,,PN,3530.91,05/03/2018
Growth and Investment,Planning General/Income,PLN00,Childcare vouchers admin fee,7,13.12,Busy Bees Benefits Ltd,151230,08/03/2018,10257381,NT,,6758298,,PN,3530.91,05/03/2018
Environment and Public Realm,Regulatory Services,REG00,Childcare vouchers admin fee,7,22.64,Busy Bees Benefits Ltd,151230,08/03/2018,10257381,NT,,6758298,,PN,3530.91,05/03/2018
Corporate Resources,Financial Services,RES10,Childcare vouchers admin fee,7,21.44,Busy Bees Benefits Ltd,151230,08/03/2018,10257381,NT,,6758298,,PN,3530.91,05/03/2018
Corporate Resources,Human Resources,RES30,Childcare vouchers admin fee,7,1.2,Busy Bees Benefits Ltd,151230,08/03/2018,10257381,NT,,6758298,,PN,3530.91,05/03/2018
Growth and Investment,Visitor Centre,VSC00,Childcare vouchers admin fee,7,4.8,Busy Bees Benefits Ltd,151230,08/03/2018,10257381,NT,,6758298,,PN,3530.91,05/03/2018
Environment and Public Realm,Trade Waste Collection,WWC01,Childcare vouchers admin fee,7,9.72,Busy Bees Benefits Ltd,151230,08/03/2018,10257381,NT,,6758298,,PN,3530.91,05/03/2018
Outside portfolio expenditure,User Balance Sheet Cost Centre,BSU,Revenue Section Agreements,9865,8377.69,Long Lawford PC Offsite Rec Maintenance,151232,01/03/2018,10257125,TC,,,,PN,8377.69,27/02/2018
Outside portfolio expenditure,User Balance Sheet Cost Centre,BSU,Revenue Section Agreements,9865,684.32,Long Lawford PC Offsite Rec Maintenance,151232,15/03/2018,10257363,TC,,,,PN,684.32,02/03/2018
Capital Housing Revenue Account,Housing Management System,HCE08,IT Capital Expenditure,5025,12000,Firmstep,151293,08/03/2018,10255711,TC,,,,PI,14400,16/01/2018
Environment and Public Realm,Crime and Disorder Activities,CAD00,Development Activities,450,450,Buddi Ltd,151339,08/03/2018,10257330,TC,867696451,5308826,867696451,PN,540,01/03/2018
Growth and Investment,The Benn Hall,BHL00,Events Tickets - Zero Rated,1405,1290,Yellowstone Events Ltd,151497,28/03/2018,10258251,TC,,,,PN,1290,27/03/2018
Corporate Resources,Human Resources Centralised Services,RES31,Recruitment Expenses,12,2450,The Hemming Group,151506,08/03/2018,10257266,TC,342023408,,342023408,PI,2940,28/02/2018
Growth and Investment,Town Centre Improvements,TWN00,Development Activities,450,1150,A Meredith Associates,151513,15/03/2018,10257712,TC,,,,PN,1150,13/03/2018
Housing Revenue Account,Multi-Storey Flats,MSF00,New Equipment,300,785,Direct Communications Radio Services Ltd,151523,08/03/2018,10257250,TC,463104085,2102081,463104085,PN,942,28/02/2018
Housing Revenue Account,Multi-Storey Flats,MSF00,External Contractor & Operator,742,2325,Direct Communications Radio Services Ltd,151523,22/03/2018,10257649,TC,463104085,2102081,463104085,PN,2790,12/03/2018
Housing Revenue Account,Multi-Storey Flats,MSF00,External Contractor & Operator,742,895,Direct Communications Radio Services Ltd,151523,28/03/2018,10258151,TC,463104085,2102081,463104085,PN,1074,26/03/2018
Growth and Investment,Planning General/Income,PLN00,Consultancy Costs,740,3350,It Does Lighting Ltd,151540,08/03/2018,10257411,TC,,5059083,,PI,4020,06/03/2018
Communities and Homes,Broadband & internet,TEL01,Telephone Expenses,371,10431.78,HighSpeed Office Ltd,151543,15/03/2018,10257534,TC,766384980,3935705,766384980,PN,12518.14,08/03/2018
Communities and Homes,ITC & Support Services,CIS10,Hardware Maintenance,376,3217,Trustco Plc,151576,28/03/2018,10257981,TC,704558241,3476994,704558241,PI,3860.4,20/03/2018
Communities and Homes,ITC & Support Services,CIS10,Hardware Maintenance,376,6259,Trustco Plc,151576,28/03/2018,10257982,TC,704558241,3476994,704558241,PI,7510.8,20/03/2018
Growth and Investment,Planning General/Income,PLN00,Consultancy Costs,740,4345.34,Nigel Reeves Planning & Urban Design Ltd,151614,08/03/2018,10257292,TC,,,,PN,4345.34,01/03/2018
Growth and Investment,The Benn Hall,BHL00,Purchases for Resale,305,846.47,Drays Wholesale Limited,151618,08/03/2018,10257419,TC,128586875,,128586875,PN,1015.76,06/03/2018
Environment and Public Realm,Whitehall Recreation Ground,LEI23,Capital Contract Payments,5000,1900,Design with Nature Ltd,151634,01/03/2018,10256425,TC,,8271753,,PI,1900,06/02/2018
Growth and Investment,Highly Sprung Project,AGM07,Development Activities,450,600,Vortex Creates Ltd,151655,01/03/2018,10257046,TC,,6691649,,PN,720,22/02/2018
Communities and Homes,Housing Strategy & Enabling,HSE00,External Contractor & Operator,742,2500,Severn Wye Energy Agency Plc,151683,08/03/2018,10257394,TC,741630454,3830608,741630454,PN,3000,05/03/2018
Housing Revenue Account,Dickinson Court AP,AGP03,Water Services,143,617.76,Severn Trent Water Ltd (Res),151689,01/03/2018,10257191,TC,,,,PN,617.76,27/02/2018
Environment and Public Realm,Trade Waste Collection,WWC01,Materials,303,890.4,Storm Environmental Ltd,151691,01/03/2018,10257149,TC,,,,PI,1948.8,27/02/2018
Environment and Public Realm,Trade Waste Collection,WWC01,Materials,303,3674.1,Storm Environmental Ltd,151691,22/03/2018,10257402,TC,,,,PI,8817.84,05/03/2018
Communities and Homes,WTHEIP - Warwickshire Together Homelessness Early Intervention Project,HIP00,Payments to Other Local Authorities,710,2221.33,People Potential Possibilites T/A P3 Charity,151739,15/03/2018,10257481,TC,,2495423,,PI,2221.33,07/03/2018
Housing Revenue Account,Unplanned Maintenance and Repair,UMR00,R&M External Contractors,100,1,UK Gas Services Ltd,151764,22/03/2018,10257923,CS,974960175,2976617,974960175,PN,12558.14,19/03/2018
Housing Revenue Account,Repairs and Maintenance - Void works,UMR09,R&M External Contractors,100,1961.52,UK Gas Services Ltd,151764,22/03/2018,10257923,CS,974960175,2976617,974960175,PN,12558.14,19/03/2018
Capital Housing Revenue Account,Heating Upgrades,HIM01,Capital Contract Payments,5000,8502.6,UK Gas Services Ltd,151764,22/03/2018,10257923,CS,974960175,2976617,974960175,PN,12558.14,19/03/2018
Capital Housing Revenue Account,Heating Upgrades,HIM01,Capital Contract Payments,5000,6030.34,UK Gas Services Ltd,151764,28/03/2018,10258180,CS,974960175,2976617,974960175,PN,7236.41,27/03/2018
Housing Revenue Account,Gas Heating Systems,UMR01,R&M External Contractors,100,960,UK Gas Services Ltd,151764,28/03/2018,10258181,CS,974960175,2976617,974960175,PN,1152,27/03/2018
Growth and Investment,Economic Development General,ECD00,Borough Local Plan,452,1252.7,C P Solutions,151770,08/03/2018,10256915,TC,,,,PI,1252.7,19/02/2018
Growth and Investment,Economic Development General,ECD00,Borough Local Plan,452,1034.7,C P Solutions,151770,15/03/2018,10257574,TC,,,,PI,1034.7,08/03/2018
Housing Revenue Account,Control Centre (HRA),CCE00,New Equipment,300,32414,Tunstall Healthcare,151791,22/03/2018,10256799,TC,182879709,1332249,182879709,PI,38896.8,15/02/2018
Housing Revenue Account,Control Centre (HRA),CCE00,New Equipment,300,1980,Tunstall Healthcare,151791,22/03/2018,10257961,TC,182879709,1332249,182879709,PI,2376,20/03/2018
Growth and Investment,Art Gallery and Museum,AGM00,Building cleaning,170,2343.75,Kingdom Service Group,151795,08/03/2018,10256645,CS,582329526,2795197,582329526,PN,37045.31,13/02/2018
Housing Revenue Account,Sheltered Housing,AGP00,Building cleaning,170,13090.67,Kingdom Service Group,151795,08/03/2018,10256645,CS,582329526,2795197,582329526,PN,37045.31,13/02/2018
Growth and Investment,The Benn Hall,BHL00,Building cleaning,170,1406.25,Kingdom Service Group,151795,08/03/2018,10256645,CS,582329526,2795197,582329526,PN,37045.31,13/02/2018
Environment and Public Realm,Car Parks General,CPK01,Building cleaning,170,398,Kingdom Service Group,151795,08/03/2018,10256645,CS,582329526,2795197,582329526,PN,37045.31,13/02/2018
Environment and Public Realm,Crematorium,CRM00,Building cleaning,170,826,Kingdom Service Group,151795,08/03/2018,10256645,CS,582329526,2795197,582329526,PN,37045.31,13/02/2018
Housing Revenue Account,Estate Management,MAN22,Building cleaning,170,2819.57,Kingdom Service Group,151795,08/03/2018,10256645,CS,582329526,2795197,582329526,PN,37045.31,13/02/2018
Housing Revenue Account,Multi-Storey Flats,MSF00,Building cleaning,170,1584.56,Kingdom Service Group,151795,08/03/2018,10256645,CS,582329526,2795197,582329526,PN,37045.31,13/02/2018
Corporate Resources,Town Hall,OFF00,Building cleaning,170,4634.67,Kingdom Service Group,151795,08/03/2018,10256645,CS,582329526,2795197,582329526,PN,37045.31,13/02/2018
Environment and Public Realm,Parks,PKS00,Building cleaning,170,220.5,Kingdom Service Group,151795,08/03/2018,10256645,CS,582329526,2795197,582329526,PN,37045.31,13/02/2018
Housing Revenue Account,Unplanned Maintenance and Repair,UMR00,Building cleaning,170,486,Kingdom Service Group,151795,08/03/2018,10256645,CS,582329526,2795197,582329526,PN,37045.31,13/02/2018
Environment and Public Realm,WSU Depot,WDP00,Building cleaning,170,436.83,Kingdom Service Group,151795,08/03/2018,10256645,CS,582329526,2795197,582329526,PN,37045.31,13/02/2018
Environment and Public Realm,Town Centre Public Conveniences,PCS00,Toilet Cleaning,173,2500,Kingdom Service Group,151795,08/03/2018,10256645,CS,582329526,2795197,582329526,PN,37045.31,13/02/2018
Growth and Investment,Art Gallery and Museum,AGM00,Building cleaning,170,2343.75,Kingdom Service Group,151795,28/03/2018,10257673,CS,582329526,2795197,582329526,PN,37045.31,12/03/2018
Housing Revenue Account,Sheltered Housing,AGP00,Building cleaning,170,13090.67,Kingdom Service Group,151795,28/03/2018,10257673,CS,582329526,2795197,582329526,PN,37045.31,12/03/2018
Growth and Investment,The Benn Hall,BHL00,Building cleaning,170,1406.25,Kingdom Service Group,151795,28/03/2018,10257673,CS,582329526,2795197,582329526,PN,37045.31,12/03/2018
Environment and Public Realm,Car Parks General,CPK01,Building cleaning,170,398,Kingdom Service Group,151795,28/03/2018,10257673,CS,582329526,2795197,582329526,PN,37045.31,12/03/2018
Environment and Public Realm,Crematorium,CRM00,Building cleaning,170,826,Kingdom Service Group,151795,28/03/2018,10257673,CS,582329526,2795197,582329526,PN,37045.31,12/03/2018
Housing Revenue Account,Estate Management,MAN22,Building cleaning,170,2819.57,Kingdom Service Group,151795,28/03/2018,10257673,CS,582329526,2795197,582329526,PN,37045.31,12/03/2018
Housing Revenue Account,Multi-Storey Flats,MSF00,Building cleaning,170,1584.56,Kingdom Service Group,151795,28/03/2018,10257673,CS,582329526,2795197,582329526,PN,37045.31,12/03/2018
Corporate Resources,Town Hall,OFF00,Building cleaning,170,4634.67,Kingdom Service Group,151795,28/03/2018,10257673,CS,582329526,2795197,582329526,PN,37045.31,12/03/2018
Environment and Public Realm,Parks,PKS00,Building cleaning,170,220.5,Kingdom Service Group,151795,28/03/2018,10257673,CS,582329526,2795197,582329526,PN,37045.31,12/03/2018
Housing Revenue Account,Unplanned Maintenance and Repair,UMR00,Building cleaning,170,486,Kingdom Service Group,151795,28/03/2018,10257673,CS,582329526,2795197,582329526,PN,37045.31,12/03/2018
Environment and Public Realm,WSU Depot,WDP00,Building cleaning,170,436.83,Kingdom Service Group,151795,28/03/2018,10257673,CS,582329526,2795197,582329526,PN,37045.31,12/03/2018
Environment and Public Realm,Town Centre Public Conveniences,PCS00,Toilet Cleaning,173,2500,Kingdom Service Group,151795,28/03/2018,10257673,CS,582329526,2795197,582329526,PN,37045.31,12/03/2018
Growth and Investment,Hall of Fame,TRY00,Publicity & Marketing,377,1538,JCDecaux UK Ltd - Rail,151817,08/03/2018,10257399,TC,539090043,1679670,539090043,PI,1845.6,05/03/2018
Growth and Investment,The Benn Hall,BHL00,Events Tickets - Zero Rated,1405,4446,Vienna Festival Ballet,151819,28/03/2018,10258108,TC,809982972,,809982972,PN,4446,23/03/2018
Growth and Investment,Economic Development General,ECD00,Borough Local Plan,452,12500,Growth Hub Business Solutions,151836,01/03/2018,10256794,TC,66928359,10369498,66928359,PN,15000,15/02/2018
Corporate Resources,Human Resources Centralised Services,RES31,Recruitment Expenses,12,2050,Growth Hub Business Solutions,151836,28/03/2018,10258002,TC,66928359,10369498,66928359,PN,2460,21/03/2018
Growth and Investment,Highly Sprung Project,AGM07,Development Activities,450,457.92,PCM Technology Solutions Ltd,151837,01/03/2018,10257138,TC,264198089,103216566,264198089,PI,549.5,27/02/2018
Capital Communities and Homes,ICT refresh programme - Infrastructure,CMP01,IT Capital Expenditure,5025,4003.67,PCM Technology Solutions Ltd,151837,08/03/2018,10257480,TC,264198089,103216566,264198089,PI,4804.4,07/03/2018
Communities and Homes,ITC & Support Services,CIS10,New Equipment,300,523.69,PCM Technology Solutions Ltd,151837,15/03/2018,10257613,TC,264198089,103216566,264198089,PI,628.43,09/03/2018
Capital Communities and Homes,ICT refresh programme - Infrastructure,CMP01,IT Capital Expenditure,5025,567.36,PCM Technology Solutions Ltd,151837,15/03/2018,10257614,TC,264198089,103216566,264198089,PI,680.83,09/03/2018
Capital Communities and Homes,ICT refresh programme - Infrastructure,CMP01,IT Capital Expenditure,5025,2535.27,PCM Technology Solutions Ltd,151837,15/03/2018,10257677,TC,264198089,103216566,264198089,PI,3042.32,12/03/2018
Capital Communities and Homes,ICT refresh programme - Infrastructure,CMP01,IT Capital Expenditure,5025,12035.66,PCM Technology Solutions Ltd,151837,22/03/2018,10257872,TC,264198089,103216566,264198089,PI,14442.8,19/03/2018
Capital Communities and Homes,ICT refresh programme - Infrastructure,CMP01,IT Capital Expenditure,5025,1119.68,PCM Technology Solutions Ltd,151837,28/03/2018,10257934,TC,264198089,103216566,264198089,PI,1343.62,19/03/2018
Growth and Investment,Visitor Centre,VSC00,Events Tickets - Standard Rated,1404,600.2,Bowens Holidays,151877,28/03/2018,10257987,TC,,,,PN,600.2,21/03/2018
Executive Director Office,"Communications, Consultation and Information Team",BTR20,Publicity & Marketing,377,720,Karl Quinney Copywriting,151904,15/03/2018,10257599,TC,,,,PN,720,09/03/2018
Capital Housing Revenue Account,Housing Management System,HCE08,IT Capital Expenditure,5025,2520,Gravitas Recruitment Group,151921,15/03/2018,10257507,TC,974844372,6959984,974844372,PN,3024,07/03/2018
Capital Housing Revenue Account,Housing Management System,HCE08,IT Capital Expenditure,5025,2520,Gravitas Recruitment Group,151921,15/03/2018,10257508,TC,974844372,6959984,974844372,PN,3024,07/03/2018
Capital Housing Revenue Account,Housing Management System,HCE08,IT Capital Expenditure,5025,3150,Gravitas Recruitment Group,151921,15/03/2018,10257741,TC,974844372,6959984,974844372,PN,3780,14/03/2018
Capital Housing Revenue Account,Housing Management System,HCE08,IT Capital Expenditure,5025,2520,Gravitas Recruitment Group,151921,22/03/2018,10257992,TC,974844372,6959984,974844372,PN,3024,21/03/2018
Housing Revenue Account,Multi-Storey Flats,MSF00,Other Miscellaneous Expenses,444,1255,Lawrence Webster Forrest Ltd,151950,08/03/2018,10257253,TC,805169730,2092456,805169730,PN,1506,28/02/2018
Housing Revenue Account,Multi-Storey Flats,MSF00,Other Miscellaneous Expenses,444,2378,Lawrence Webster Forrest Ltd,151950,08/03/2018,10257254,TC,805169730,2092456,805169730,PN,2853.6,28/02/2018
Growth and Investment,AGM Exhibitions/Outreach,AGM02,Other Miscellaneous Expenses,444,1100,Bridgeman Images,151992,08/03/2018,10257229,TC,239939019,1056394,239939019,PN,1320,28/02/2018
Growth and Investment,Visitor Centre,VSC00,Events Tickets - Standard Rated,1404,738.9,Rugby Operatic Society,151993,08/03/2018,10257218,TC,,,,PN,738.9,27/02/2018
Growth and Investment,Sports and Recreation,LSD03,Development Activities,450,1000,Nixus Sport & Entertainment,151995,08/03/2018,10257335,TC,277416185,,277416185,PN,1200,01/03/2018
Capital Growth and Investment,AGM purchases of artwork,ART00,Capital Contract Payments,5000,28800,Hollybush Gardens Ltd,152006,15/03/2018,10257617,TC,899195544,,899195544,PN,34560,12/03/2018
Growth and Investment,About Face Exhibition,AGM08,Development Activities,450,485,Kent Services ltd,152009,15/03/2018,10257656,TC,507103882,2179136,507103882,PN,582,12/03/2018
Growth and Investment,The Benn Hall,BHL00,Events Tickets - Zero Rated,1405,7634.2,Forbidden Events,152013,22/03/2018,10257896,NT,,,,PN,7634.2,19/03/2018
Growth and Investment,Planning General/Income,PLN00,External Legal Costs,741,7340,Green Planning Studio Ltd,152025,22/03/2018,10258003,NT,,,,PN,8808,21/03/2018
Environment and Public Realm,Crematorium,CRM00,Publicity & Marketing,377,995,Impact Marketing & Publicity Ltd,152028,28/03/2018,10258096,TC,416293456,1901620,416293456,PN,1194,23/03/2018
Environment and Public Realm,Crematorium,CRM00,Publicity & Marketing,377,995,Impact Marketing & Publicity Ltd,152028,28/03/2018,10258097,TC,416293456,1901620,416293456,PN,1194,23/03/2018
Housing Revenue Account,Unplanned Maintenance and Repair,UMR00,Tools,304,478.33,Howe Tools,,06/03/2018,45233,,,,,,,
Housing Revenue Account,Unplanned Maintenance and Repair,UMR00,Tools,304,595.53,UK Tool Centre,,06/03/2018,45233,,,,,,,
Housing Revenue Account,Unplanned Maintenance and Repair,UMR00,Tools,304,622.5,Toolstop,,06/03/2018,45233,,,,,,,
Housing Revenue Account,Unplanned Maintenance and Repair,UMR00,Materials,303,706.29,Nisbets,,06/03/2018,45233,,,,,,,
Communities and Homes,ITC & Support Services,CIS10,Software Maintenance,374,2133.67,Google,,16/03/2018,45420,,,,,,,
Communities and Homes,ITC & Support Services,CIS10,Software Maintenance,374,700.65,Google Ireland Limited,,27/03/2018,45422,,,,,,,
Communities and Homes,ITC & Support Services,CIS10,Software Maintenance,374,709.5,A Singleton,,27/03/2018,45422,,,,,,,
Communities and Homes,ITC & Support Services,CIS10,New Equipment,300,774,Seton Uk,,27/03/2018,45422,,,,,,,
Housing Revenue Account,Unplanned Maintenance and Repair,UMR00,Materials,303,499.5,The Key Safe Company,,16/03/2018,45629,,,,,,,
Corporate Resources,Council Tax and NNDR Collection,CTX01,External Legal Costs,741,1071.98,Money Claim online,,16/03/2018,45629,,,,,,,
Capital Housing Revenue Account,CCTV upgrades,HCE23,Capital Contract Payments,5000,2133.54,Argos & The Range,,16/03/2018,45629,,,,,,,
Capital Communities and Homes,ICT refresh programme - Infrastructure,CMP01,IT Capital Expenditure,5025,6872.98,Spanning Cloud Apps LLC,,08/03/2018,45250,,,,,,,
Communities and Homes,Housing Options,HOT00,Bed & Breakfast,146,922.4,Accor,,15/03/2018,45329,,,,,,,
Communities and Homes,Housing Options,HOT00,Bed & Breakfast,146,3758.25,Travelodge,,15/03/2018,45357,,,,,,,
Housing Revenue Account,Supervision and Management General,MAN00,External Legal Costs,741,1059,HMCTS,,16/03/2018,45333,,,,,,,
Outside portfolio expenditure,User Balance Sheet Cost Centre,BSU,Collection Fund,9476,997900,Cov & Warks Pooling,,16/03/2018,45334,,,,,,,
Outside portfolio expenditure,User Balance Sheet Cost Centre,BSU,Collection Fund,9476,366316,WCC County Fund,,19/03/2018,45347,,,,,,,
Outside portfolio expenditure,User Balance Sheet Cost Centre,BSU,Collection Fund,9476,1972495,DCLG,,19/03/2018,45346,,,,,,,
Environment and Public Realm,Private Hire Vehciles,HKC01,Other Miscellaneous Expenses,444,748,DBS,,20/03/2018,45352,,,,,,,
Communities and Homes,ITC & Support Services,CIS21,Software Maintenance,374,600.77,Bottomline Technologies,,20/03/2018,45351,,,,,,,
Communities and Homes,Housing Options,HOT00,Grants To Individuals,721,1500,Amethyst Letting Agency,,22/03/2018,45380,,,,,,,
Corporate Resources,General Financial Services,GFS00,Payment Card Costs,445,2483.09,Capita,,27/03/2018,45429,,,,,,,
Communities and Homes,ITC & Support Services,CIS21,Software Maintenance,374,7550.7,Midland Software,,29/03/2018,45507,,,,,,,
